Workbook

Sheet Nesma
G2: Installation | K2: Removal
A3: S/N Installed | B3: P/N Installed | C3: Discreption | D3: A/C | E3: Position | F3: TLB | G3: Date | H3: TSN | I3: CSN | J3: Date | K3: TSN | L3: CSN | M3: T.HRS | N3: T.CYC
A4: 45253 | B4: C20195162 | C4: NOSE WHEEL #1 | K4: =IFERROR(VLOOKUP(F4,'[2]AC TLB'!$A$7:$F$1199,5,1)-'[2]AC TLB'!$E$6+H4/24,"") ->  | L4: =IFERROR(IF(OR(COUNT(A4="A9197",A4="A8538",A4="43815",A4="43637",A4="43236",A4="43059",A4="14138",A4="17644",A4="14216")),VLOOKUP(F4,'[2]AC TLB'!$A$7:$F$1199,6,1)-'[2]AC TLB'!$F$6+I4,0),"") ->  | M4: =K4-H4/24 ->  | N4: =L4-I4 -> 
A5: 43059 | B5: C20195162 | C5: NOSE WHEEL #1 | K5: =IFERROR(VLOOKUP(F5,'[2]AC TLB'!$A$7:$F$1199,5,1)-'[2]AC TLB'!$E$6+H5/24,"") ->  | L5: =IFERROR(IF(OR(COUNT(A5="A9197",A5="A8538",A5="43815",A5="43637",A5="43236",A5="43059",A5="14138",A5="17644",A5="14216")),VLOOKUP(F5,'[2]AC TLB'!$A$7:$F$1199,6,1)-'[2]AC TLB'!$F$6+I5,0),"") -> 
A6: 43078 | B6: C20195162 | C6: NOSE WHEEL #2 | K6: =IFERROR(VLOOKUP(F6,'[2]AC TLB'!$A$7:$F$1199,5,1)-'[2]AC TLB'!$E$6+H6/24,"") ->  | L6: =IFERROR(IF(OR(COUNT(A6="A9197",A6="A8538",A6="43815",A6="43637",A6="43236",A6="43059",A6="14138",A6="17644",A6="14216")),VLOOKUP(F6,'[2]AC TLB'!$A$7:$F$1199,6,1)-'[2]AC TLB'!$F$6+I6,0),"") -> 
A7: 55385 | B7: C20195162 | C7: LOGO LT R.H.S | K7: =IFERROR(VLOOKUP(F7,'[2]AC TLB'!$A$7:$F$1199,5,1)-'[2]AC TLB'!$E$6+H7/24,"") ->  | L7: =IFERROR(IF(OR(COUNT(A7="A9197",A7="A8538",A7="43815",A7="43637",A7="43236",A7="43059",A7="14138",A7="17644",A7="14216")),VLOOKUP(F7,'[2]AC TLB'!$A$7:$F$1199,6,1)-'[2]AC TLB'!$F$6+I7,0),"") -> 
A8: 28787 | B8: C20195162 | C8: TAKE OFF LT | K8: =IFERROR(VLOOKUP(F8,'[2]AC TLB'!$A$7:$F$1199,5,1)-'[2]AC TLB'!$E$6+H8/24,"") ->  | L8: =IFERROR(IF(OR(COUNT(A8="A9197",A8="A8538",A8="43815",A8="43637",A8="43236",A8="43059",A8="14138",A8="17644",A8="14216")),VLOOKUP(F8,'[2]AC TLB'!$A$7:$F$1199,6,1)-'[2]AC TLB'!$F$6+I8,0),"") -> 
A9: 44998 | B9: C20195162 | C9: TURN OFF LAMP L.H.S | K9: =IFERROR(VLOOKUP(F9,'[2]AC TLB'!$A$7:$F$1199,5,1)-'[2]AC TLB'!$E$6+H9/24,"") ->  | L9: =IFERROR(IF(OR(COUNT(A9="A9197",A9="A8538",A9="43815",A9="43637",A9="43236",A9="43059",A9="14138",A9="17644",A9="14216")),VLOOKUP(F9,'[2]AC TLB'!$A$7:$F$1199,6,1)-'[2]AC TLB'!$F$6+I9,0),"") -> 
A10: 32381 | B10: C20195162 | C10: DMC #3 | K10: =IFERROR(VLOOKUP(F10,'[2]AC TLB'!$A$7:$F$1199,5,1)-'[2]AC TLB'!$E$6+H10/24,"") ->  | L10: =IFERROR(IF(OR(COUNT(A10="A9197",A10="A8538",A10="43815",A10="43637",A10="43236",A10="43059",A10="14138",A10="17644",A10="14216")),VLOOKUP(F10,'[2]AC TLB'!$A$7:$F$1199,6,1)-'[2]AC TLB'!$F$6+I10,0),"") -> 
A11: 27448 | B11: C20195162 | C11: MAIN WHEEL #4 | K11: =IFERROR(VLOOKUP(F11,'[2]AC TLB'!$A$7:$F$1199,5,1)-'[2]AC TLB'!$E$6+H11/24,"") ->  | L11: =IFERROR(IF(OR(COUNT(A11="A9197",A11="A8538",A11="43815",A11="43637",A11="43236",A11="43059",A11="14138",A11="17644",A11="14216")),VLOOKUP(F11,'[2]AC TLB'!$A$7:$F$1199,6,1)-'[2]AC TLB'!$F$6+I11,0),"") -> 
A12: 49303 | B12: C20195162 | C12: MAIN WHEEL #2 | K12: =IFERROR(VLOOKUP(F12,'[2]AC TLB'!$A$7:$F$1199,5,1)-'[2]AC TLB'!$E$6+H12/24,"") ->  | L12: =IFERROR(IF(OR(COUNT(A12="A9197",A12="A8538",A12="43815",A12="43637",A12="43236",A12="43059",A12="14138",A12="17644",A12="14216")),VLOOKUP(F12,'[2]AC TLB'!$A$7:$F$1199,6,1)-'[2]AC TLB'!$F$6+I12,0),"") -> 
A13: 55386 | B13: C20195162 | C13: LANDING LT R.H.S | K13: =IFERROR(VLOOKUP(F13,'[2]AC TLB'!$A$7:$F$1199,5,1)-'[2]AC TLB'!$E$6+H13/24,"") ->  | L13: =IFERROR(IF(OR(COUNT(A13="A9197",A13="A8538",A13="43815",A13="43637",A13="43236",A13="43059",A13="14138",A13="17644",A13="14216")),VLOOKUP(F13,'[2]AC TLB'!$A$7:$F$1199,6,1)-'[2]AC TLB'!$F$6+I13,0),"") -> 
A14: 43239 | B14: C20195162 | C14: NOSE WHEEL #2 | K14: =IFERROR(VLOOKUP(F14,'[2]AC TLB'!$A$7:$F$1199,5,1)-'[2]AC TLB'!$E$6+H14/24,"") ->  | L14: =IFERROR(IF(OR(COUNT(A14="A9197",A14="A8538",A14="43815",A14="43637",A14="43236",A14="43059",A14="14138",A14="17644",A14="14216")),VLOOKUP(F14,'[2]AC TLB'!$A$7:$F$1199,6,1)-'[2]AC TLB'!$F$6+I14,0),"") ->  | M14: =K14-H14/24 ->  | N14: =L14-I14 -> 
A15: 43236 | B15: C20195162 | C15: RECI FAN | K15: =IFERROR(VLOOKUP(F15,'[2]AC TLB'!$A$7:$F$1199,5,1)-'[2]AC TLB'!$E$6+H15/24,"") ->  | L15: =IFERROR(IF(OR(COUNT(A15="A9197",A15="A8538",A15="43815",A15="43637",A15="43236",A15="43059",A15="14138",A15="17644",A15="14216")),VLOOKUP(F15,'[2]AC TLB'!$A$7:$F$1199,6,1)-'[2]AC TLB'!$F$6+I15,0),"") -> 
A16: 43509 | B16: C20195162 | C16: FLGX HOSE ASSY. | K16: =IFERROR(VLOOKUP(F16,'[2]AC TLB'!$A$7:$F$1199,5,1)-'[2]AC TLB'!$E$6+H16/24,"") ->  | L16: =IFERROR(IF(OR(COUNT(A16="A9197",A16="A8538",A16="43815",A16="43637",A16="43236",A16="43059",A16="14138",A16="17644",A16="14216")),VLOOKUP(F16,'[2]AC TLB'!$A$7:$F$1199,6,1)-'[2]AC TLB'!$F$6+I16,0),"") -> 
A17: 46961 | B17: C20195162 | C17: FUEL PUMP CENTER TANK #1 | K17: =IFERROR(VLOOKUP(F17,'[2]AC TLB'!$A$7:$F$1199,5,1)-'[2]AC TLB'!$E$6+H17/24,"") ->  | L17: =IFERROR(IF(OR(COUNT(A17="A9197",A17="A8538",A17="43815",A17="43637",A17="43236",A17="43059",A17="14138",A17="17644",A17="14216")),VLOOKUP(F17,'[2]AC TLB'!$A$7:$F$1199,6,1)-'[2]AC TLB'!$F$6+I17,0),"") -> 
A18: 48901 | B18: C20195162 | C18: NOSE WHEEL #2 | K18: =IFERROR(VLOOKUP(F18,'[2]AC TLB'!$A$7:$F$1199,5,1)-'[2]AC TLB'!$E$6+H18/24,"") ->  | L18: =IFERROR(IF(OR(COUNT(A18="A9197",A18="A8538",A18="43815",A18="43637",A18="43236",A18="43059",A18="14138",A18="17644",A18="14216")),VLOOKUP(F18,'[2]AC TLB'!$A$7:$F$1199,6,1)-'[2]AC TLB'!$F$6+I18,0),"") -> 
A19: A9197 | B19: 3-1531-3 | C19: FLSCU #2 | K19: =IFERROR(VLOOKUP(F19,'[2]AC TLB'!$A$7:$F$1199,5,1)-'[2]AC TLB'!$E$6+H19/24,"") ->  | L19: =IFERROR(IF(OR(COUNT(A19="A9197",A19="A8538",A19="43815",A19="43637",A19="43236",A19="43059",A19="14138",A19="17644",A19="14216")),VLOOKUP(F19,'[2]AC TLB'!$A$7:$F$1199,6,1)-'[2]AC TLB'!$F$6+I19,0),"") -> 
A20: A9195 | B20: 3-1531-3 | C20: MAIN WHEEL #1 | K20: =IFERROR(VLOOKUP(F20,'[2]AC TLB'!$A$7:$F$1199,5,1)-'[2]AC TLB'!$E$6+H20/24,"") ->  | L20: =IFERROR(IF(OR(COUNT(A20="A9197",A20="A8538",A20="43815",A20="43637",A20="43236",A20="43059",A20="14138",A20="17644",A20="14216")),VLOOKUP(F20,'[2]AC TLB'!$A$7:$F$1199,6,1)-'[2]AC TLB'!$F$6+I20,0),"") -> 
A21: 6905 | B21: 3-1531-3 | C21: MAIN WHEEL #3 | K21: =IFERROR(VLOOKUP(F21,'[2]AC TLB'!$A$7:$F$1199,5,1)-'[2]AC TLB'!$E$6+H21/24,"") ->  | L21: =IFERROR(IF(OR(COUNT(A21="A9197",A21="A8538",A21="43815",A21="43637",A21="43236",A21="43059",A21="14138",A21="17644",A21="14216")),VLOOKUP(F21,'[2]AC TLB'!$A$7:$F$1199,6,1)-'[2]AC TLB'!$F$6+I21,0),"") -> 
A22: 5426 | B22: 3-1531-3 | C22: MAIN WHEEL #3 | K22: =IFERROR(VLOOKUP(F22,'[2]AC TLB'!$A$7:$F$1199,5,1)-'[2]AC TLB'!$E$6+H22/24,"") ->  | L22: =IFERROR(IF(OR(COUNT(A22="A9197",A22="A8538",A22="43815",A22="43637",A22="43236",A22="43059",A22="14138",A22="17644",A22="14216")),VLOOKUP(F22,'[2]AC TLB'!$A$7:$F$1199,6,1)-'[2]AC TLB'!$F$6+I22,0),"") -> 
A23: A6656 | B23: 3-1531-3 | C23: MAIN WHEEL #1 | K23: =IFERROR(VLOOKUP(F23,'[2]AC TLB'!$A$7:$F$1199,5,1)-'[2]AC TLB'!$E$6+H23/24,"") ->  | L23: =IFERROR(IF(OR(COUNT(A23="A9197",A23="A8538",A23="43815",A23="43637",A23="43236",A23="43059",A23="14138",A23="17644",A23="14216")),VLOOKUP(F23,'[2]AC TLB'!$A$7:$F$1199,6,1)-'[2]AC TLB'!$F$6+I23,0),"") -> 
A24: A7028 | B24: 3-1531-3 | C24: MAIN WHEEL #1 | K24: =IFERROR(VLOOKUP(F24,'[2]AC TLB'!$A$7:$F$1199,5,1)-'[2]AC TLB'!$E$6+H24/24,"") ->  | L24: =IFERROR(IF(OR(COUNT(A24="A9197",A24="A8538",A24="43815",A24="43637",A24="43236",A24="43059",A24="14138",A24="17644",A24="14216")),VLOOKUP(F24,'[2]AC TLB'!$A$7:$F$1199,6,1)-'[2]AC TLB'!$F$6+I24,0),"") -> 
A25: A6241 | B25: 3-1531-3 | C25: MAIN WHEEL #3 | K25: =IFERROR(VLOOKUP(F25,'[2]AC TLB'!$A$7:$F$1199,5,1)-'[2]AC TLB'!$E$6+H25/24,"") ->  | L25: =IFERROR(IF(OR(COUNT(A25="A9197",A25="A8538",A25="43815",A25="43637",A25="43236",A25="43059",A25="14138",A25="17644",A25="14216")),VLOOKUP(F25,'[2]AC TLB'!$A$7:$F$1199,6,1)-'[2]AC TLB'!$F$6+I25,0),"") -> 
A26: A2693 | B26: 3-1531-3 | C26: MAIN WHEEL #4 | K26: =IFERROR(VLOOKUP(F26,'[2]AC TLB'!$A$7:$F$1199,5,1)-'[2]AC TLB'!$E$6+H26/24,"") ->  | L26: =IFERROR(IF(OR(COUNT(A26="A9197",A26="A8538",A26="43815",A26="43637",A26="43236",A26="43059",A26="14138",A26="17644",A26="14216")),VLOOKUP(F26,'[2]AC TLB'!$A$7:$F$1199,6,1)-'[2]AC TLB'!$F$6+I26,0),"") -> 
A27: 4459 | B27: 3-1531-3 | C27: MAIN WHEEL #2 | K27: =IFERROR(VLOOKUP(F27,'[2]AC TLB'!$A$7:$F$1199,5,1)-'[2]AC TLB'!$E$6+H27/24,"") ->  | L27: =IFERROR(IF(OR(COUNT(A27="A9197",A27="A8538",A27="43815",A27="43637",A27="43236",A27="43059",A27="14138",A27="17644",A27="14216")),VLOOKUP(F27,'[2]AC TLB'!$A$7:$F$1199,6,1)-'[2]AC TLB'!$F$6+I27,0),"") -> 
A28: 0086 | B28: 3-1531-3 | C28: MAIN WHEEL #3 | K28: =IFERROR(VLOOKUP(F28,'[2]AC TLB'!$A$7:$F$1199,5,1)-'[2]AC TLB'!$E$6+H28/24,"") ->  | L28: =IFERROR(IF(OR(COUNT(A28="A9197",A28="A8538",A28="43815",A28="43637",A28="43236",A28="43059",A28="14138",A28="17644",A28="14216")),VLOOKUP(F28,'[2]AC TLB'!$A$7:$F$1199,6,1)-'[2]AC TLB'!$F$6+I28,0),"") -> 
A29: 6901 | B29: 3-1531-3 | C29: MAIN WHEEL #1 | K29: =IFERROR(VLOOKUP(F29,'[2]AC TLB'!$A$7:$F$1199,5,1)-'[2]AC TLB'!$E$6+H29/24,"") ->  | L29: =IFERROR(IF(OR(COUNT(A29="A9197",A29="A8538",A29="43815",A29="43637",A29="43236",A29="43059",A29="14138",A29="17644",A29="14216")),VLOOKUP(F29,'[2]AC TLB'!$A$7:$F$1199,6,1)-'[2]AC TLB'!$F$6+I29,0),"") -> 
A30: 0389 | B30: 3-1531-3 | C30: MAIN WHEEL #4 | K30: =IFERROR(VLOOKUP(F30,'[2]AC TLB'!$A$7:$F$1199,5,1)-'[2]AC TLB'!$E$6+H30/24,"") ->  | L30: =IFERROR(IF(OR(COUNT(A30="A9197",A30="A8538",A30="43815",A30="43637",A30="43236",A30="43059",A30="14138",A30="17644",A30="14216")),VLOOKUP(F30,'[2]AC TLB'!$A$7:$F$1199,6,1)-'[2]AC TLB'!$F$6+I30,0),"") -> 
A31: 3023 | B31: 3-1531-3 | C31: MAIN WHEEL #2 | K31: =IFERROR(VLOOKUP(F31,'[2]AC TLB'!$A$7:$F$1199,5,1)-'[2]AC TLB'!$E$6+H31/24,"") ->  | L31: =IFERROR(IF(OR(COUNT(A31="A9197",A31="A8538",A31="43815",A31="43637",A31="43236",A31="43059",A31="14138",A31="17644",A31="14216")),VLOOKUP(F31,'[2]AC TLB'!$A$7:$F$1199,6,1)-'[2]AC TLB'!$F$6+I31,0),"") -> 
A32: 8538 | B32: 3-1531-3 | C32: MAIN WHEEL #3 | K32: =IFERROR(VLOOKUP(F32,'[2]AC TLB'!$A$7:$F$1199,5,1)-'[2]AC TLB'!$E$6+H32/24,"") ->  | L32: =IFERROR(IF(OR(COUNT(A32="A9197",A32="A8538",A32="43815",A32="43637",A32="43236",A32="43059",A32="14138",A32="17644",A32="14216")),VLOOKUP(F32,'[2]AC TLB'!$A$7:$F$1199,6,1)-'[2]AC TLB'!$F$6+I32,0),"") -> 
A33: A4793 | B33: 3-1531-3 | C33: MAIN WHEEL #1 | K33: =IFERROR(VLOOKUP(F33,'[2]AC TLB'!$A$7:$F$1199,5,1)-'[2]AC TLB'!$E$6+H33/24,"") ->  | L33: =IFERROR(IF(OR(COUNT(A33="A9197",A33="A8538",A33="43815",A33="43637",A33="43236",A33="43059",A33="14138",A33="17644",A33="14216")),VLOOKUP(F33,'[2]AC TLB'!$A$7:$F$1199,6,1)-'[2]AC TLB'!$F$6+I33,0),"") -> 
A34: 7091 | B34: 3-1531-3 | C34: MAIN WHEEL #1 | K34: =IFERROR(VLOOKUP(F34,'[2]AC TLB'!$A$7:$F$1199,5,1)-'[2]AC TLB'!$E$6+H34/24,"") ->  | L34: =IFERROR(IF(OR(COUNT(A34="A9197",A34="A8538",A34="43815",A34="43637",A34="43236",A34="43059",A34="14138",A34="17644",A34="14216")),VLOOKUP(F34,'[2]AC TLB'!$A$7:$F$1199,6,1)-'[2]AC TLB'!$F$6+I34,0),"") -> 
A35: 9424 | B35: 3-1531-3 | C35: MAIN WHEEL #1 | K35: =IFERROR(VLOOKUP(F35,'[2]AC TLB'!$A$7:$F$1199,5,1)-'[2]AC TLB'!$E$6+H35/24,"") ->  | L35: =IFERROR(IF(OR(COUNT(A35="A9197",A35="A8538",A35="43815",A35="43637",A35="43236",A35="43059",A35="14138",A35="17644",A35="14216")),VLOOKUP(F35,'[2]AC TLB'!$A$7:$F$1199,6,1)-'[2]AC TLB'!$F$6+I35,0),"") -> 
A36: 500 | B36: 3-1531-4 | C36: MAIN WHEEL #4 | K36: =IFERROR(VLOOKUP(F36,'[2]AC TLB'!$A$7:$F$1199,5,1)-'[2]AC TLB'!$E$6+H36/24,"") ->  | L36: =IFERROR(IF(OR(COUNT(A36="A9197",A36="A8538",A36="43815",A36="43637",A36="43236",A36="43059",A36="14138",A36="17644",A36="14216")),VLOOKUP(F36,'[2]AC TLB'!$A$7:$F$1199,6,1)-'[2]AC TLB'!$F$6+I36,0),"") -> 
A37: 900 | B37: 3-1531-5 | C37: MAIN WHEEL #2 | K37: =IFERROR(VLOOKUP(F37,'[2]AC TLB'!$A$7:$F$1199,5,1)-'[2]AC TLB'!$E$6+H37/24,"") ->  | L37: =IFERROR(IF(OR(COUNT(A37="A9197",A37="A8538",A37="43815",A37="43637",A37="43236",A37="43059",A37="14138",A37="17644",A37="14216")),VLOOKUP(F37,'[2]AC TLB'!$A$7:$F$1199,6,1)-'[2]AC TLB'!$F$6+I37,0),"") -> 
A38: 5200 | K38: =IFERROR(VLOOKUP(F38,'[2]AC TLB'!$A$7:$F$1199,5,1)-'[2]AC TLB'!$E$6+H38/24,"") ->  | L38: =IFERROR(IF(OR(COUNT(A38="A9197",A38="A8538",A38="43815",A38="43637",A38="43236",A38="43059",A38="14138",A38="17644",A38="14216")),VLOOKUP(F38,'[2]AC TLB'!$A$7:$F$1199,6,1)-'[2]AC TLB'!$F$6+I38,0),"") -> 
K39: =IFERROR(VLOOKUP(F39,'[2]AC TLB'!$A$7:$F$1199,5,1)-'[2]AC TLB'!$E$6+H39/24,"") ->  | L39: =IFERROR(IF(OR(COUNT(A39="A9197",A39="A8538",A39="43815",A39="43637",A39="43236",A39="43059",A39="14138",A39="17644",A39="14216")),VLOOKUP(F39,'[2]AC TLB'!$A$7:$F$1199,6,1)-'[2]AC TLB'!$F$6+I39,0),"") -> 
K40: =IFERROR(VLOOKUP(F40,'[2]AC TLB'!$A$7:$F$1199,5,1)-'[2]AC TLB'!$E$6+H40/24,"") ->  | L40: =IFERROR(IF(OR(COUNT(A40="A9197",A40="A8538",A40="43815",A40="43637",A40="43236",A40="43059",A40="14138",A40="17644",A40="14216")),VLOOKUP(F40,'[2]AC TLB'!$A$7:$F$1199,6,1)-'[2]AC TLB'!$F$6+I40,0),"") -> 
K41: =IFERROR(VLOOKUP(F41,'[2]AC TLB'!$A$7:$F$1199,5,1)-'[2]AC TLB'!$E$6+H41/24,"") ->  | L41: =IFERROR(IF(OR(COUNT(A41="A9197",A41="A8538",A41="43815",A41="43637",A41="43236",A41="43059",A41="14138",A41="17644",A41="14216")),VLOOKUP(F41,'[2]AC TLB'!$A$7:$F$1199,6,1)-'[2]AC TLB'!$F$6+I41,0),"") -> 
K42: =IFERROR(VLOOKUP(F42,'[2]AC TLB'!$A$7:$F$1199,5,1)-'[2]AC TLB'!$E$6+H42/24,"") ->  | L42: =IFERROR(IF(OR(COUNT(A42="A9197",A42="A8538",A42="43815",A42="43637",A42="43236",A42="43059",A42="14138",A42="17644",A42="14216")),VLOOKUP(F42,'[2]AC TLB'!$A$7:$F$1199,6,1)-'[2]AC TLB'!$F$6+I42,0),"") -> 
K43: =IFERROR(VLOOKUP(F43,'[2]AC TLB'!$A$7:$F$1199,5,1)-'[2]AC TLB'!$E$6+H43/24,"") ->  | L43: =IFERROR(IF(OR(COUNT(A43="A9197",A43="A8538",A43="43815",A43="43637",A43="43236",A43="43059",A43="14138",A43="17644",A43="14216")),VLOOKUP(F43,'[2]AC TLB'!$A$7:$F$1199,6,1)-'[2]AC TLB'!$F$6+I43,0),"") -> 
K44: =IFERROR(VLOOKUP(F44,'[2]AC TLB'!$A$7:$F$1199,5,1)-'[2]AC TLB'!$E$6+H44/24,"") ->  | L44: =IFERROR(IF(OR(COUNT(A44="A9197",A44="A8538",A44="43815",A44="43637",A44="43236",A44="43059",A44="14138",A44="17644",A44="14216")),VLOOKUP(F44,'[2]AC TLB'!$A$7:$F$1199,6,1)-'[2]AC TLB'!$F$6+I44,0),"") -> 
K45: =IFERROR(VLOOKUP(F45,'[2]AC TLB'!$A$7:$F$1199,5,1)-'[2]AC TLB'!$E$6+H45/24,"") ->  | L45: =IFERROR(IF(OR(COUNT(A45="A9197",A45="A8538",A45="43815",A45="43637",A45="43236",A45="43059",A45="14138",A45="17644",A45="14216")),VLOOKUP(F45,'[2]AC TLB'!$A$7:$F$1199,6,1)-'[2]AC TLB'!$F$6+I45,0),"") -> 
K46: =IFERROR(VLOOKUP(F46,'[2]AC TLB'!$A$7:$F$1199,5,1)-'[2]AC TLB'!$E$6+H46/24,"") ->  | L46: =IFERROR(IF(OR(COUNT(A46="A9197",A46="A8538",A46="43815",A46="43637",A46="43236",A46="43059",A46="14138",A46="17644",A46="14216")),VLOOKUP(F46,'[2]AC TLB'!$A$7:$F$1199,6,1)-'[2]AC TLB'!$F$6+I46,0),"") -> 
K47: =IFERROR(VLOOKUP(F47,'[2]AC TLB'!$A$7:$F$1199,5,1)-'[2]AC TLB'!$E$6+H47/24,"") ->  | L47: =IFERROR(IF(OR(COUNT(A47="A9197",A47="A8538",A47="43815",A47="43637",A47="43236",A47="43059",A47="14138",A47="17644",A47="14216")),VLOOKUP(F47,'[2]AC TLB'!$A$7:$F$1199,6,1)-'[2]AC TLB'!$F$6+I47,0),"") -> 
K48: =IFERROR(VLOOKUP(F48,'[2]AC TLB'!$A$7:$F$1199,5,1)-'[2]AC TLB'!$E$6+H48/24,"") ->  | L48: =IFERROR(IF(OR(COUNT(A48="A9197",A48="A8538",A48="43815",A48="43637",A48="43236",A48="43059",A48="14138",A48="17644",A48="14216")),VLOOKUP(F48,'[2]AC TLB'!$A$7:$F$1199,6,1)-'[2]AC TLB'!$F$6+I48,0),"") -> 
K49: =IFERROR(VLOOKUP(F49,'[2]AC TLB'!$A$7:$F$1199,5,1)-'[2]AC TLB'!$E$6+H49/24,"") ->  | L49: =IFERROR(IF(OR(COUNT(A49="A9197",A49="A8538",A49="43815",A49="43637",A49="43236",A49="43059",A49="14138",A49="17644",A49="14216")),VLOOKUP(F49,'[2]AC TLB'!$A$7:$F$1199,6,1)-'[2]AC TLB'!$F$6+I49,0),"") -> 
K50: =IFERROR(VLOOKUP(F50,'[2]AC TLB'!$A$7:$F$1199,5,1)-'[2]AC TLB'!$E$6+H50/24,"") ->  | L50: =IFERROR(IF(OR(COUNT(A50="A9197",A50="A8538",A50="43815",A50="43637",A50="43236",A50="43059",A50="14138",A50="17644",A50="14216")),VLOOKUP(F50,'[2]AC TLB'!$A$7:$F$1199,6,1)-'[2]AC TLB'!$F$6+I50,0),"") -> 
K51: =IFERROR(VLOOKUP(F51,'[2]AC TLB'!$A$7:$F$1199,5,1)-'[2]AC TLB'!$E$6+H51/24,"") ->  | L51: =IFERROR(IF(OR(COUNT(A51="A9197",A51="A8538",A51="43815",A51="43637",A51="43236",A51="43059",A51="14138",A51="17644",A51="14216")),VLOOKUP(F51,'[2]AC TLB'!$A$7:$F$1199,6,1)-'[2]AC TLB'!$F$6+I51,0),"") -> 
K52: =IFERROR(VLOOKUP(F52,'[2]AC TLB'!$A$7:$F$1199,5,1)-'[2]AC TLB'!$E$6+H52/24,"") ->  | L52: =IFERROR(IF(OR(COUNT(A52="A9197",A52="A8538",A52="43815",A52="43637",A52="43236",A52="43059",A52="14138",A52="17644",A52="14216")),VLOOKUP(F52,'[2]AC TLB'!$A$7:$F$1199,6,1)-'[2]AC TLB'!$F$6+I52,0),"") -> 
K53: =IFERROR(VLOOKUP(F53,'[2]AC TLB'!$A$7:$F$1199,5,1)-'[2]AC TLB'!$E$6+H53/24,"") ->  | L53: =IFERROR(IF(OR(COUNT(A53="A9197",A53="A8538",A53="43815",A53="43637",A53="43236",A53="43059",A53="14138",A53="17644",A53="14216")),VLOOKUP(F53,'[2]AC TLB'!$A$7:$F$1199,6,1)-'[2]AC TLB'!$F$6+I53,0),"") -> 
K54: =IFERROR(VLOOKUP(F54,'[2]AC TLB'!$A$7:$F$1199,5,1)-'[2]AC TLB'!$E$6+H54/24,"") ->  | L54: =IFERROR(IF(OR(COUNT(A54="A9197",A54="A8538",A54="43815",A54="43637",A54="43236",A54="43059",A54="14138",A54="17644",A54="14216")),VLOOKUP(F54,'[2]AC TLB'!$A$7:$F$1199,6,1)-'[2]AC TLB'!$F$6+I54,0),"") -> 
K55: =IFERROR(VLOOKUP(F55,'[2]AC TLB'!$A$7:$F$1199,5,1)-'[2]AC TLB'!$E$6+H55/24,"") ->  | L55: =IFERROR(IF(OR(COUNT(A55="A9197",A55="A8538",A55="43815",A55="43637",A55="43236",A55="43059",A55="14138",A55="17644",A55="14216")),VLOOKUP(F55,'[2]AC TLB'!$A$7:$F$1199,6,1)-'[2]AC TLB'!$F$6+I55,0),"") -> 
K56: =IFERROR(VLOOKUP(F56,'[2]AC TLB'!$A$7:$F$1199,5,1)-'[2]AC TLB'!$E$6+H56/24,"") ->  | L56: =IFERROR(IF(OR(COUNT(A56="A9197",A56="A8538",A56="43815",A56="43637",A56="43236",A56="43059",A56="14138",A56="17644",A56="14216")),VLOOKUP(F56,'[2]AC TLB'!$A$7:$F$1199,6,1)-'[2]AC TLB'!$F$6+I56,0),"") -> 
K57: =IFERROR(VLOOKUP(F57,'[2]AC TLB'!$A$7:$F$1199,5,1)-'[2]AC TLB'!$E$6+H57/24,"") ->  | L57: =IFERROR(IF(OR(COUNT(A57="A9197",A57="A8538",A57="43815",A57="43637",A57="43236",A57="43059",A57="14138",A57="17644",A57="14216")),VLOOKUP(F57,'[2]AC TLB'!$A$7:$F$1199,6,1)-'[2]AC TLB'!$F$6+I57,0),"") -> 
K58: =IFERROR(VLOOKUP(F58,'[2]AC TLB'!$A$7:$F$1199,5,1)-'[2]AC TLB'!$E$6+H58/24,"") ->  | L58: =IFERROR(IF(OR(COUNT(A58="A9197",A58="A8538",A58="43815",A58="43637",A58="43236",A58="43059",A58="14138",A58="17644",A58="14216")),VLOOKUP(F58,'[2]AC TLB'!$A$7:$F$1199,6,1)-'[2]AC TLB'!$F$6+I58,0),"") -> 
K59: =IFERROR(VLOOKUP(F59,'[2]AC TLB'!$A$7:$F$1199,5,1)-'[2]AC TLB'!$E$6+H59/24,"") ->  | L59: =IFERROR(IF(OR(COUNT(A59="A9197",A59="A8538",A59="43815",A59="43637",A59="43236",A59="43059",A59="14138",A59="17644",A59="14216")),VLOOKUP(F59,'[2]AC TLB'!$A$7:$F$1199,6,1)-'[2]AC TLB'!$F$6+I59,0),"") -> 
K60: =IFERROR(VLOOKUP(F60,'[2]AC TLB'!$A$7:$F$1199,5,1)-'[2]AC TLB'!$E$6+H60/24,"") ->  | L60: =IFERROR(IF(OR(COUNT(A60="A9197",A60="A8538",A60="43815",A60="43637",A60="43236",A60="43059",A60="14138",A60="17644",A60="14216")),VLOOKUP(F60,'[2]AC TLB'!$A$7:$F$1199,6,1)-'[2]AC TLB'!$F$6+I60,0),"") -> 
K61: =IFERROR(VLOOKUP(F61,'[2]AC TLB'!$A$7:$F$1199,5,1)-'[2]AC TLB'!$E$6+H61/24,"") ->  | L61: =IFERROR(IF(OR(COUNT(A61="A9197",A61="A8538",A61="43815",A61="43637",A61="43236",A61="43059",A61="14138",A61="17644",A61="14216")),VLOOKUP(F61,'[2]AC TLB'!$A$7:$F$1199,6,1)-'[2]AC TLB'!$F$6+I61,0),"") -> 
K62: =IFERROR(VLOOKUP(F62,'[2]AC TLB'!$A$7:$F$1199,5,1)-'[2]AC TLB'!$E$6+H62/24,"") ->  | L62: =IFERROR(IF(OR(COUNT(A62="A9197",A62="A8538",A62="43815",A62="43637",A62="43236",A62="43059",A62="14138",A62="17644",A62="14216")),VLOOKUP(F62,'[2]AC TLB'!$A$7:$F$1199,6,1)-'[2]AC TLB'!$F$6+I62,0),"") -> 
K63: =IFERROR(VLOOKUP(F63,'[2]AC TLB'!$A$7:$F$1199,5,1)-'[2]AC TLB'!$E$6+H63/24,"") ->  | L63: =IFERROR(IF(OR(COUNT(A63="A9197",A63="A8538",A63="43815",A63="43637",A63="43236",A63="43059",A63="14138",A63="17644",A63="14216")),VLOOKUP(F63,'[2]AC TLB'!$A$7:$F$1199,6,1)-'[2]AC TLB'!$F$6+I63,0),"") -> 
K64: =IFERROR(VLOOKUP(F64,'[2]AC TLB'!$A$7:$F$1199,5,1)-'[2]AC TLB'!$E$6+H64/24,"") ->  | L64: =IFERROR(IF(OR(COUNT(A64="A9197",A64="A8538",A64="43815",A64="43637",A64="43236",A64="43059",A64="14138",A64="17644",A64="14216")),VLOOKUP(F64,'[2]AC TLB'!$A$7:$F$1199,6,1)-'[2]AC TLB'!$F$6+I64,0),"") -> 
K65: =IFERROR(VLOOKUP(F65,'[2]AC TLB'!$A$7:$F$1199,5,1)-'[2]AC TLB'!$E$6+H65/24,"") ->  | L65: =IFERROR(IF(OR(COUNT(A65="A9197",A65="A8538",A65="43815",A65="43637",A65="43236",A65="43059",A65="14138",A65="17644",A65="14216")),VLOOKUP(F65,'[2]AC TLB'!$A$7:$F$1199,6,1)-'[2]AC TLB'!$F$6+I65,0),"") -> 
K66: =IFERROR(VLOOKUP(F66,'[2]AC TLB'!$A$7:$F$1199,5,1)-'[2]AC TLB'!$E$6+H66/24,"") ->  | L66: =IFERROR(IF(OR(COUNT(A66="A9197",A66="A8538",A66="43815",A66="43637",A66="43236",A66="43059",A66="14138",A66="17644",A66="14216")),VLOOKUP(F66,'[2]AC TLB'!$A$7:$F$1199,6,1)-'[2]AC TLB'!$F$6+I66,0),"") -> 
K67: =IFERROR(VLOOKUP(F67,'[2]AC TLB'!$A$7:$F$1199,5,1)-'[2]AC TLB'!$E$6+H67/24,"") ->  | L67: =IFERROR(IF(OR(COUNT(A67="A9197",A67="A8538",A67="43815",A67="43637",A67="43236",A67="43059",A67="14138",A67="17644",A67="14216")),VLOOKUP(F67,'[2]AC TLB'!$A$7:$F$1199,6,1)-'[2]AC TLB'!$F$6+I67,0),"") -> 
K68: =IFERROR(VLOOKUP(F68,'[2]AC TLB'!$A$7:$F$1199,5,1)-'[2]AC TLB'!$E$6+H68/24,"") ->  | L68: =IFERROR(IF(OR(COUNT(A68="A9197",A68="A8538",A68="43815",A68="43637",A68="43236",A68="43059",A68="14138",A68="17644",A68="14216")),VLOOKUP(F68,'[2]AC TLB'!$A$7:$F$1199,6,1)-'[2]AC TLB'!$F$6+I68,0),"") -> 
K69: =IFERROR(VLOOKUP(F69,'[2]AC TLB'!$A$7:$F$1199,5,1)-'[2]AC TLB'!$E$6+H69/24,"") ->  | L69: =IFERROR(IF(OR(COUNT(A69="A9197",A69="A8538",A69="43815",A69="43637",A69="43236",A69="43059",A69="14138",A69="17644",A69="14216")),VLOOKUP(F69,'[2]AC TLB'!$A$7:$F$1199,6,1)-'[2]AC TLB'!$F$6+I69,0),"") -> 
K70: =IFERROR(VLOOKUP(F70,'[2]AC TLB'!$A$7:$F$1199,5,1)-'[2]AC TLB'!$E$6+H70/24,"") ->  | L70: =IFERROR(IF(OR(COUNT(A70="A9197",A70="A8538",A70="43815",A70="43637",A70="43236",A70="43059",A70="14138",A70="17644",A70="14216")),VLOOKUP(F70,'[2]AC TLB'!$A$7:$F$1199,6,1)-'[2]AC TLB'!$F$6+I70,0),"") -> 
K71: =IFERROR(VLOOKUP(F71,'[2]AC TLB'!$A$7:$F$1199,5,1)-'[2]AC TLB'!$E$6+H71/24,"") ->  | L71: =IFERROR(IF(OR(COUNT(A71="A9197",A71="A8538",A71="43815",A71="43637",A71="43236",A71="43059",A71="14138",A71="17644",A71="14216")),VLOOKUP(F71,'[2]AC TLB'!$A$7:$F$1199,6,1)-'[2]AC TLB'!$F$6+I71,0),"") -> 
K72: =IFERROR(VLOOKUP(F72,'[2]AC TLB'!$A$7:$F$1199,5,1)-'[2]AC TLB'!$E$6+H72/24,"") ->  | L72: =IFERROR(IF(OR(COUNT(A72="A9197",A72="A8538",A72="43815",A72="43637",A72="43236",A72="43059",A72="14138",A72="17644",A72="14216")),VLOOKUP(F72,'[2]AC TLB'!$A$7:$F$1199,6,1)-'[2]AC TLB'!$F$6+I72,0),"") -> 
K73: =IFERROR(VLOOKUP(F73,'[2]AC TLB'!$A$7:$F$1199,5,1)-'[2]AC TLB'!$E$6+H73/24,"") ->  | L73: =IFERROR(IF(OR(COUNT(A73="A9197",A73="A8538",A73="43815",A73="43637",A73="43236",A73="43059",A73="14138",A73="17644",A73="14216")),VLOOKUP(F73,'[2]AC TLB'!$A$7:$F$1199,6,1)-'[2]AC TLB'!$F$6+I73,0),"") -> 
K74: =IFERROR(VLOOKUP(F74,'[2]AC TLB'!$A$7:$F$1199,5,1)-'[2]AC TLB'!$E$6+H74/24,"") ->  | L74: =IFERROR(IF(OR(COUNT(A74="A9197",A74="A8538",A74="43815",A74="43637",A74="43236",A74="43059",A74="14138",A74="17644",A74="14216")),VLOOKUP(F74,'[2]AC TLB'!$A$7:$F$1199,6,1)-'[2]AC TLB'!$F$6+I74,0),"") -> 
K75: =IFERROR(VLOOKUP(F75,'[2]AC TLB'!$A$7:$F$1199,5,1)-'[2]AC TLB'!$E$6+H75/24,"") ->  | L75: =IFERROR(IF(OR(COUNT(A75="A9197",A75="A8538",A75="43815",A75="43637",A75="43236",A75="43059",A75="14138",A75="17644",A75="14216")),VLOOKUP(F75,'[2]AC TLB'!$A$7:$F$1199,6,1)-'[2]AC TLB'!$F$6+I75,0),"") -> 
K76: =IFERROR(VLOOKUP(F76,'[2]AC TLB'!$A$7:$F$1199,5,1)-'[2]AC TLB'!$E$6+H76/24,"") ->  | L76: =IFERROR(IF(OR(COUNT(A76="A9197",A76="A8538",A76="43815",A76="43637",A76="43236",A76="43059",A76="14138",A76="17644",A76="14216")),VLOOKUP(F76,'[2]AC TLB'!$A$7:$F$1199,6,1)-'[2]AC TLB'!$F$6+I76,0),"") -> 
K77: =IFERROR(VLOOKUP(F77,'[2]AC TLB'!$A$7:$F$1199,5,1)-'[2]AC TLB'!$E$6+H77/24,"") ->  | L77: =IFERROR(IF(OR(COUNT(A77="A9197",A77="A8538",A77="43815",A77="43637",A77="43236",A77="43059",A77="14138",A77="17644",A77="14216")),VLOOKUP(F77,'[2]AC TLB'!$A$7:$F$1199,6,1)-'[2]AC TLB'!$F$6+I77,0),"") -> 
K78: =IFERROR(VLOOKUP(F78,'[2]AC TLB'!$A$7:$F$1199,5,1)-'[2]AC TLB'!$E$6+H78/24,"") ->  | L78: =IFERROR(IF(OR(COUNT(A78="A9197",A78="A8538",A78="43815",A78="43637",A78="43236",A78="43059",A78="14138",A78="17644",A78="14216")),VLOOKUP(F78,'[2]AC TLB'!$A$7:$F$1199,6,1)-'[2]AC TLB'!$F$6+I78,0),"") ->  | M78: =K78-H78/24 ->  | N78: =L78-I78 -> 
K79: =IFERROR(VLOOKUP(F79,'[2]AC TLB'!$A$7:$F$1199,5,1)-'[2]AC TLB'!$E$6+H79/24,"") ->  | L79: =IFERROR(IF(OR(COUNT(A79="A9197",A79="A8538",A79="43815",A79="43637",A79="43236",A79="43059",A79="14138",A79="17644",A79="14216")),VLOOKUP(F79,'[2]AC TLB'!$A$7:$F$1199,6,1)-'[2]AC TLB'!$F$6+I79,0),"") -> 
K80: =IFERROR(VLOOKUP(F80,'[2]AC TLB'!$A$7:$F$1199,5,1)-'[2]AC TLB'!$E$6+H80/24,"") ->  | L80: =IFERROR(IF(OR(COUNT(A80="A9197",A80="A8538",A80="43815",A80="43637",A80="43236",A80="43059",A80="14138",A80="17644",A80="14216")),VLOOKUP(F80,'[2]AC TLB'!$A$7:$F$1199,6,1)-'[2]AC TLB'!$F$6+I80,0),"") -> 
K81: =IFERROR(VLOOKUP(F81,'[2]AC TLB'!$A$7:$F$1199,5,1)-'[2]AC TLB'!$E$6+H81/24,"") ->  | L81: =IFERROR(IF(OR(COUNT(A81="A9197",A81="A8538",A81="43815",A81="43637",A81="43236",A81="43059",A81="14138",A81="17644",A81="14216")),VLOOKUP(F81,'[2]AC TLB'!$A$7:$F$1199,6,1)-'[2]AC TLB'!$F$6+I81,0),"") -> 
K82: =IFERROR(VLOOKUP(F82,'[2]AC TLB'!$A$7:$F$1199,5,1)-'[2]AC TLB'!$E$6+H82/24,"") ->  | L82: =IFERROR(IF(OR(COUNT(A82="A9197",A82="A8538",A82="43815",A82="43637",A82="43236",A82="43059",A82="14138",A82="17644",A82="14216")),VLOOKUP(F82,'[2]AC TLB'!$A$7:$F$1199,6,1)-'[2]AC TLB'!$F$6+I82,0),"") -> 
K83: =IFERROR(VLOOKUP(F83,'[2]AC TLB'!$A$7:$F$1199,5,1)-'[2]AC TLB'!$E$6+H83/24,"") ->  | L83: =IFERROR(IF(OR(COUNT(A83="A9197",A83="A8538",A83="43815",A83="43637",A83="43236",A83="43059",A83="14138",A83="17644",A83="14216")),VLOOKUP(F83,'[2]AC TLB'!$A$7:$F$1199,6,1)-'[2]AC TLB'!$F$6+I83,0),"") -> 
K84: =IFERROR(VLOOKUP(F84,'[2]AC TLB'!$A$7:$F$1199,5,1)-'[2]AC TLB'!$E$6+H84/24,"") ->  | L84: =IFERROR(IF(OR(COUNT(A84="A9197",A84="A8538",A84="43815",A84="43637",A84="43236",A84="43059",A84="14138",A84="17644",A84="14216")),VLOOKUP(F84,'[2]AC TLB'!$A$7:$F$1199,6,1)-'[2]AC TLB'!$F$6+I84,0),"") -> 
K85: =IFERROR(VLOOKUP(F85,'[2]AC TLB'!$A$7:$F$1199,5,1)-'[2]AC TLB'!$E$6+H85/24,"") ->  | L85: =IFERROR(IF(OR(COUNT(A85="A9197",A85="A8538",A85="43815",A85="43637",A85="43236",A85="43059",A85="14138",A85="17644",A85="14216")),VLOOKUP(F85,'[2]AC TLB'!$A$7:$F$1199,6,1)-'[2]AC TLB'!$F$6+I85,0),"") -> 
K86: =IFERROR(VLOOKUP(F86,'[2]AC TLB'!$A$7:$F$1199,5,1)-'[2]AC TLB'!$E$6+H86/24,"") ->  | L86: =IFERROR(IF(OR(COUNT(A86="A9197",A86="A8538",A86="43815",A86="43637",A86="43236",A86="43059",A86="14138",A86="17644",A86="14216")),VLOOKUP(F86,'[2]AC TLB'!$A$7:$F$1199,6,1)-'[2]AC TLB'!$F$6+I86,0),"") -> 
K87: =IFERROR(VLOOKUP(F87,'[2]AC TLB'!$A$7:$F$1199,5,1)-'[2]AC TLB'!$E$6+H87/24,"") ->  | L87: =IFERROR(IF(OR(COUNT(A87="A9197",A87="A8538",A87="43815",A87="43637",A87="43236",A87="43059",A87="14138",A87="17644",A87="14216")),VLOOKUP(F87,'[2]AC TLB'!$A$7:$F$1199,6,1)-'[2]AC TLB'!$F$6+I87,0),"") -> 
K88: =IFERROR(VLOOKUP(F88,'[2]AC TLB'!$A$7:$F$1199,5,1)-'[2]AC TLB'!$E$6+H88/24,"") ->  | L88: =IFERROR(IF(OR(COUNT(A88="A9197",A88="A8538",A88="43815",A88="43637",A88="43236",A88="43059",A88="14138",A88="17644",A88="14216")),VLOOKUP(F88,'[2]AC TLB'!$A$7:$F$1199,6,1)-'[2]AC TLB'!$F$6+I88,0),"") -> 
K89: =IFERROR(VLOOKUP(F89,'[2]AC TLB'!$A$7:$F$1199,5,1)-'[2]AC TLB'!$E$6+H89/24,"") ->  | L89: =IFERROR(IF(OR(COUNT(A89="A9197",A89="A8538",A89="43815",A89="43637",A89="43236",A89="43059",A89="14138",A89="17644",A89="14216")),VLOOKUP(F89,'[2]AC TLB'!$A$7:$F$1199,6,1)-'[2]AC TLB'!$F$6+I89,0),"") -> 
K90: =IFERROR(VLOOKUP(F90,'[2]AC TLB'!$A$7:$F$1199,5,1)-'[2]AC TLB'!$E$6+H90/24,"") ->  | L90: =IFERROR(IF(OR(COUNT(A90="A9197",A90="A8538",A90="43815",A90="43637",A90="43236",A90="43059",A90="14138",A90="17644",A90="14216")),VLOOKUP(F90,'[2]AC TLB'!$A$7:$F$1199,6,1)-'[2]AC TLB'!$F$6+I90,0),"") -> 
K91: =IFERROR(VLOOKUP(F91,'[2]AC TLB'!$A$7:$F$1199,5,1)-'[2]AC TLB'!$E$6+H91/24,"") ->  | L91: =IFERROR(IF(OR(COUNT(A91="A9197",A91="A8538",A91="43815",A91="43637",A91="43236",A91="43059",A91="14138",A91="17644",A91="14216")),VLOOKUP(F91,'[2]AC TLB'!$A$7:$F$1199,6,1)-'[2]AC TLB'!$F$6+I91,0),"") -> 
K92: =IFERROR(VLOOKUP(F92,'[2]AC TLB'!$A$7:$F$1199,5,1)-'[2]AC TLB'!$E$6+H92/24,"") ->  | L92: =IFERROR(IF(OR(COUNT(A92="A9197",A92="A8538",A92="43815",A92="43637",A92="43236",A92="43059",A92="14138",A92="17644",A92="14216")),VLOOKUP(F92,'[2]AC TLB'!$A$7:$F$1199,6,1)-'[2]AC TLB'!$F$6+I92,0),"") -> 
K93: =IFERROR(VLOOKUP(F93,'[2]AC TLB'!$A$7:$F$1199,5,1)-'[2]AC TLB'!$E$6+H93/24,"") ->  | L93: =IFERROR(IF(OR(COUNT(A93="A9197",A93="A8538",A93="43815",A93="43637",A93="43236",A93="43059",A93="14138",A93="17644",A93="14216")),VLOOKUP(F93,'[2]AC TLB'!$A$7:$F$1199,6,1)-'[2]AC TLB'!$F$6+I93,0),"") -> 
K94: =IFERROR(VLOOKUP(F94,'[2]AC TLB'!$A$7:$F$1199,5,1)-'[2]AC TLB'!$E$6+H94/24,"") ->  | L94: =IFERROR(IF(OR(COUNT(A94="A9197",A94="A8538",A94="43815",A94="43637",A94="43236",A94="43059",A94="14138",A94="17644",A94="14216")),VLOOKUP(F94,'[2]AC TLB'!$A$7:$F$1199,6,1)-'[2]AC TLB'!$F$6+I94,0),"") -> 
K95: =IFERROR(VLOOKUP(F95,'[2]AC TLB'!$A$7:$F$1199,5,1)-'[2]AC TLB'!$E$6+H95/24,"") ->  | L95: =IFERROR(IF(OR(COUNT(A95="A9197",A95="A8538",A95="43815",A95="43637",A95="43236",A95="43059",A95="14138",A95="17644",A95="14216")),VLOOKUP(F95,'[2]AC TLB'!$A$7:$F$1199,6,1)-'[2]AC TLB'!$F$6+I95,0),"") -> 
K96: =IFERROR(VLOOKUP(F96,'[2]AC TLB'!$A$7:$F$1199,5,1)-'[2]AC TLB'!$E$6+H96/24,"") ->  | L96: =IFERROR(IF(OR(COUNT(A96="A9197",A96="A8538",A96="43815",A96="43637",A96="43236",A96="43059",A96="14138",A96="17644",A96="14216")),VLOOKUP(F96,'[2]AC TLB'!$A$7:$F$1199,6,1)-'[2]AC TLB'!$F$6+I96,0),"") -> 
K97: =IFERROR(VLOOKUP(F97,'[2]AC TLB'!$A$7:$F$1199,5,1)-'[2]AC TLB'!$E$6+H97/24,"") ->  | L97: =IFERROR(IF(OR(COUNT(A97="A9197",A97="A8538",A97="43815",A97="43637",A97="43236",A97="43059",A97="14138",A97="17644",A97="14216")),VLOOKUP(F97,'[2]AC TLB'!$A$7:$F$1199,6,1)-'[2]AC TLB'!$F$6+I97,0),"") -> 
K98: =IFERROR(VLOOKUP(F98,'[2]AC TLB'!$A$7:$F$1199,5,1)-'[2]AC TLB'!$E$6+H98/24,"") ->  | L98: =IFERROR(IF(OR(COUNT(A98="A9197",A98="A8538",A98="43815",A98="43637",A98="43236",A98="43059",A98="14138",A98="17644",A98="14216")),VLOOKUP(F98,'[2]AC TLB'!$A$7:$F$1199,6,1)-'[2]AC TLB'!$F$6+I98,0),"") -> 
K99: =IFERROR(VLOOKUP(F99,'[2]AC TLB'!$A$7:$F$1199,5,1)-'[2]AC TLB'!$E$6+H99/24,"") ->  | L99: =IFERROR(IF(OR(COUNT(A99="A9197",A99="A8538",A99="43815",A99="43637",A99="43236",A99="43059",A99="14138",A99="17644",A99="14216")),VLOOKUP(F99,'[2]AC TLB'!$A$7:$F$1199,6,1)-'[2]AC TLB'!$F$6+I99,0),"") -> 
K100: =IFERROR(VLOOKUP(F100,'[2]AC TLB'!$A$7:$F$1199,5,1)-'[2]AC TLB'!$E$6+H100/24,"") ->  | L100: =IFERROR(IF(OR(COUNT(A100="A9197",A100="A8538",A100="43815",A100="43637",A100="43236",A100="43059",A100="14138",A100="17644",A100="14216")),VLOOKUP(F100,'[2]AC TLB'!$A$7:$F$1199,6,1)-'[2]AC TLB'!$F$6+I100,0),"") -> 
K101: =IFERROR(VLOOKUP(F101,'[2]AC TLB'!$A$7:$F$1199,5,1)-'[2]AC TLB'!$E$6+H101/24,"") ->  | L101: =IFERROR(IF(OR(COUNT(A101="A9197",A101="A8538",A101="43815",A101="43637",A101="43236",A101="43059",A101="14138",A101="17644",A101="14216")),VLOOKUP(F101,'[2]AC TLB'!$A$7:$F$1199,6,1)-'[2]AC TLB'!$F$6+I101,0),"") -> 
K102: =IFERROR(VLOOKUP(F102,'[2]AC TLB'!$A$7:$F$1199,5,1)-'[2]AC TLB'!$E$6+H102/24,"") ->  | L102: =IFERROR(IF(OR(COUNT(A102="A9197",A102="A8538",A102="43815",A102="43637",A102="43236",A102="43059",A102="14138",A102="17644",A102="14216")),VLOOKUP(F102,'[2]AC TLB'!$A$7:$F$1199,6,1)-'[2]AC TLB'!$F$6+I102,0),"") -> 
K103: =IFERROR(VLOOKUP(F103,'[2]AC TLB'!$A$7:$F$1199,5,1)-'[2]AC TLB'!$E$6+H103/24,"") ->  | L103: =IFERROR(IF(OR(COUNT(A103="A9197",A103="A8538",A103="43815",A103="43637",A103="43236",A103="43059",A103="14138",A103="17644",A103="14216")),VLOOKUP(F103,'[2]AC TLB'!$A$7:$F$1199,6,1)-'[2]AC TLB'!$F$6+I103,0),"") -> 
K104: =IFERROR(VLOOKUP(F104,'[2]AC TLB'!$A$7:$F$1199,5,1)-'[2]AC TLB'!$E$6+H104/24,"") ->  | L104: =IFERROR(IF(OR(COUNT(A104="A9197",A104="A8538",A104="43815",A104="43637",A104="43236",A104="43059",A104="14138",A104="17644",A104="14216")),VLOOKUP(F104,'[2]AC TLB'!$A$7:$F$1199,6,1)-'[2]AC TLB'!$F$6+I104,0),"") -> 
K105: =IFERROR(VLOOKUP(F105,'[2]AC TLB'!$A$7:$F$1199,5,1)-'[2]AC TLB'!$E$6+H105/24,"") ->  | L105: =IFERROR(IF(OR(COUNT(A105="A9197",A105="A8538",A105="43815",A105="43637",A105="43236",A105="43059",A105="14138",A105="17644",A105="14216")),VLOOKUP(F105,'[2]AC TLB'!$A$7:$F$1199,6,1)-'[2]AC TLB'!$F$6+I105,0),"") -> 
K106: =IFERROR(VLOOKUP(F106,'[2]AC TLB'!$A$7:$F$1199,5,1)-'[2]AC TLB'!$E$6+H106/24,"") ->  | L106: =IFERROR(IF(OR(COUNT(A106="A9197",A106="A8538",A106="43815",A106="43637",A106="43236",A106="43059",A106="14138",A106="17644",A106="14216")),VLOOKUP(F106,'[2]AC TLB'!$A$7:$F$1199,6,1)-'[2]AC TLB'!$F$6+I106,0),"") -> 
K107: =IFERROR(VLOOKUP(F107,'[2]AC TLB'!$A$7:$F$1199,5,1)-'[2]AC TLB'!$E$6+H107/24,"") ->  | L107: =IFERROR(IF(OR(COUNT(A107="A9197",A107="A8538",A107="43815",A107="43637",A107="43236",A107="43059",A107="14138",A107="17644",A107="14216")),VLOOKUP(F107,'[2]AC TLB'!$A$7:$F$1199,6,1)-'[2]AC TLB'!$F$6+I107,0),"") -> 

Sheet Wheels
A2: MAIN WHEELS | D2: عدد التكرار | F2: الحصر
A3: No | B3: S/N-Number | C3: P/N-Number | D3: S/N-Number | E3: P/N-Number | F3: S/N-Number | G3: الإجمالي | H3: P/N-Number | I3: الإجمالي
A4: 1 | B4: 45253 | C4: C20195162 | D4: =COUNTIF(Parts!$G$5:$G$200, Wheels!B4) -> 1 | E4: =COUNTIF(Parts!$F$5:$F$200, Wheels!C4) -> 15 | F4: =IFERROR(IF(B4<>"",INDEX($B$4:$B$110,MATCH(0,COUNTIF($F3:F$3,$B$4:$B$110),0)),""),"") -> 45253 | G4: =IF(F4="","",SUMPRODUCT(--($B$4:$B$110=F4),$D$4:$D$110)) -> 1 | H4: =IFERROR(IF(C4<>"",INDEX($C$4:$C$110,MATCH(0,COUNTIF($H3:H$3,$C$4:$C$110),0)),""),"") -> C20195162 | I4: =IF(H4="","",SUMPRODUCT(--($C$4:$C$110=H4),$E$4:$E$110)) -> 225
A5: 2 | B5: 43059 | C5: C20195162 | D5: =COUNTIF(Parts!$G$5:$G$200, Wheels!B5) -> 1 | E5: =COUNTIF(Parts!$F$5:$F$200, Wheels!C5) -> 15 | F5: =IFERROR(IF(B5<>"",INDEX($B$4:$B$110,MATCH(0,COUNTIF($F$3:F4,$B$4:$B$110),0)),""),"") -> 43059 | G5: =IF(F5="","",SUMPRODUCT(--($B$4:$B$110=F5),$D$4:$D$110)) -> 1 | H5: =IFERROR(IF(C5<>"",INDEX($C$4:$C$110,MATCH(0,COUNTIF($H$3:H4,$C$4:$C$110),0)),""),"") -> 3-1531-3 | I5: =IF(H5="","",SUMPRODUCT(--($C$4:$C$110=H5),$E$4:$E$110)) -> 289
A6: 3 | B6: 43078 | C6: C20195162 | D6: =COUNTIF(Parts!$G$5:$G$200, Wheels!B6) -> 1 | E6: =COUNTIF(Parts!$F$5:$F$200, Wheels!C6) -> 15 | F6: =IFERROR(IF(B6<>"",INDEX($B$4:$B$110,MATCH(0,COUNTIF($F$3:F5,$B$4:$B$110),0)),""),"") -> 43078 | G6: =IF(F6="","",SUMPRODUCT(--($B$4:$B$110=F6),$D$4:$D$110)) -> 1 | H6: =IFERROR(IF(C6<>"",INDEX($C$4:$C$110,MATCH(0,COUNTIF($H$3:H5,$C$4:$C$110),0)),""),"") -> 3-1531-4 | I6: =IF(H6="","",SUMPRODUCT(--($C$4:$C$110=H6),$E$4:$E$110)) -> 1
A7: 4 | B7: 55385 | C7: C20195162 | D7: =COUNTIF(Parts!$G$5:$G$200, Wheels!B7) -> 1 | E7: =COUNTIF(Parts!$F$5:$F$200, Wheels!C7) -> 15 | F7: =IFERROR(IF(B7<>"",INDEX($B$4:$B$110,MATCH(0,COUNTIF($F$3:F6,$B$4:$B$110),0)),""),"") -> 55385 | G7: =IF(F7="","",SUMPRODUCT(--($B$4:$B$110=F7),$D$4:$D$110)) -> 1 | H7: =IFERROR(IF(C7<>"",INDEX($C$4:$C$110,MATCH(0,COUNTIF($H$3:H6,$C$4:$C$110),0)),""),"") -> 3-1531-5 | I7: =IF(H7="","",SUMPRODUCT(--($C$4:$C$110=H7),$E$4:$E$110)) -> 1
A8: 5 | B8: 28787 | C8: C20195162 | D8: =COUNTIF(Parts!$G$5:$G$200, Wheels!B8) -> 1 | E8: =COUNTIF(Parts!$F$5:$F$200, Wheels!C8) -> 15 | F8: =IFERROR(IF(B8<>"",INDEX($B$4:$B$110,MATCH(0,COUNTIF($F$3:F7,$B$4:$B$110),0)),""),"") -> 28787 | G8: =IF(F8="","",SUMPRODUCT(--($B$4:$B$110=F8),$D$4:$D$110)) -> 1 | H8: =IFERROR(IF(C8<>"",INDEX($C$4:$C$110,MATCH(0,COUNTIF($H$3:H7,$C$4:$C$110),0)),""),"") -> 0 | I8: =IF(H8="","",SUMPRODUCT(--($C$4:$C$110=H8),$E$4:$E$110)) -> 0
A9: 6 | B9: 44998 | C9: C20195162 | D9: =COUNTIF(Parts!$G$5:$G$200, Wheels!B9) -> 1 | E9: =COUNTIF(Parts!$F$5:$F$200, Wheels!C9) -> 15 | F9: =IFERROR(IF(B9<>"",INDEX($B$4:$B$110,MATCH(0,COUNTIF($F$3:F8,$B$4:$B$110),0)),""),"") -> 44998 | G9: =IF(F9="","",SUMPRODUCT(--($B$4:$B$110=F9),$D$4:$D$110)) -> 1 | H9: =IFERROR(IF(C9<>"",INDEX($C$4:$C$110,MATCH(0,COUNTIF($H$3:H8,$C$4:$C$110),0)),""),"") ->  | I9: =IF(H9="","",SUMPRODUCT(--($C$4:$C$110=H9),$E$4:$E$110)) -> 
A10: 7 | B10: 32381 | C10: C20195162 | D10: =COUNTIF(Parts!$G$5:$G$200, Wheels!B10) -> 1 | E10: =COUNTIF(Parts!$F$5:$F$200, Wheels!C10) -> 15 | F10: =IFERROR(IF(B10<>"",INDEX($B$4:$B$110,MATCH(0,COUNTIF($F$3:F9,$B$4:$B$110),0)),""),"") -> 32381 | G10: =IF(F10="","",SUMPRODUCT(--($B$4:$B$110=F10),$D$4:$D$110)) -> 1 | H10: =IFERROR(IF(C10<>"",INDEX($C$4:$C$110,MATCH(0,COUNTIF($H$3:H9,$C$4:$C$110),0)),""),"") ->  | I10: =IF(H10="","",SUMPRODUCT(--($C$4:$C$110=H10),$E$4:$E$110)) -> 
A11: 8 | B11: 27448 | C11: C20195162 | D11: =COUNTIF(Parts!$G$5:$G$200, Wheels!B11) -> 1 | E11: =COUNTIF(Parts!$F$5:$F$200, Wheels!C11) -> 15 | F11: =IFERROR(IF(B11<>"",INDEX($B$4:$B$110,MATCH(0,COUNTIF($F$3:F10,$B$4:$B$110),0)),""),"") -> 27448 | G11: =IF(F11="","",SUMPRODUCT(--($B$4:$B$110=F11),$D$4:$D$110)) -> 1 | H11: =IFERROR(IF(C11<>"",INDEX($C$4:$C$110,MATCH(0,COUNTIF($H$3:H10,$C$4:$C$110),0)),""),"") ->  | I11: =IF(H11="","",SUMPRODUCT(--($C$4:$C$110=H11),$E$4:$E$110)) -> 
A12: 9 | B12: 49303 | C12: C20195162 | D12: =COUNTIF(Parts!$G$5:$G$200, Wheels!B12) -> 1 | E12: =COUNTIF(Parts!$F$5:$F$200, Wheels!C12) -> 15 | F12: =IFERROR(IF(B12<>"",INDEX($B$4:$B$110,MATCH(0,COUNTIF($F$3:F11,$B$4:$B$110),0)),""),"") -> 49303 | G12: =IF(F12="","",SUMPRODUCT(--($B$4:$B$110=F12),$D$4:$D$110)) -> 1 | H12: =IFERROR(IF(C12<>"",INDEX($C$4:$C$110,MATCH(0,COUNTIF($H$3:H11,$C$4:$C$110),0)),""),"") ->  | I12: =IF(H12="","",SUMPRODUCT(--($C$4:$C$110=H12),$E$4:$E$110)) -> 
A13: 10 | B13: 55386 | C13: C20195162 | D13: =COUNTIF(Parts!$G$5:$G$200, Wheels!B13) -> 1 | E13: =COUNTIF(Parts!$F$5:$F$200, Wheels!C13) -> 15 | F13: =IFERROR(IF(B13<>"",INDEX($B$4:$B$110,MATCH(0,COUNTIF($F$3:F12,$B$4:$B$110),0)),""),"") -> 55386 | G13: =IF(F13="","",SUMPRODUCT(--($B$4:$B$110=F13),$D$4:$D$110)) -> 1 | H13: =IFERROR(IF(C13<>"",INDEX($C$4:$C$110,MATCH(0,COUNTIF($H$3:H12,$C$4:$C$110),0)),""),"") ->  | I13: =IF(H13="","",SUMPRODUCT(--($C$4:$C$110=H13),$E$4:$E$110)) -> 
A14: 11 | B14: 43239 | C14: C20195162 | D14: =COUNTIF(Parts!$G$5:$G$200, Wheels!B14) -> 1 | E14: =COUNTIF(Parts!$F$5:$F$200, Wheels!C14) -> 15 | F14: =IFERROR(IF(B14<>"",INDEX($B$4:$B$110,MATCH(0,COUNTIF($F$3:F13,$B$4:$B$110),0)),""),"") -> 43239 | G14: =IF(F14="","",SUMPRODUCT(--($B$4:$B$110=F14),$D$4:$D$110)) -> 1 | H14: =IFERROR(IF(C14<>"",INDEX($C$4:$C$110,MATCH(0,COUNTIF($H$3:H13,$C$4:$C$110),0)),""),"") ->  | I14: =IF(H14="","",SUMPRODUCT(--($C$4:$C$110=H14),$E$4:$E$110)) -> 
A15: 12 | B15: 43236 | C15: C20195162 | D15: =COUNTIF(Parts!$G$5:$G$200, Wheels!B15) -> 1 | E15: =COUNTIF(Parts!$F$5:$F$200, Wheels!C15) -> 15 | F15: =IFERROR(IF(B15<>"",INDEX($B$4:$B$110,MATCH(0,COUNTIF($F$3:F14,$B$4:$B$110),0)),""),"") -> 43236 | G15: =IF(F15="","",SUMPRODUCT(--($B$4:$B$110=F15),$D$4:$D$110)) -> 1 | H15: =IFERROR(IF(C15<>"",INDEX($C$4:$C$110,MATCH(0,COUNTIF($H$3:H14,$C$4:$C$110),0)),""),"") ->  | I15: =IF(H15="","",SUMPRODUCT(--($C$4:$C$110=H15),$E$4:$E$110)) -> 
A16: 13 | B16: 43509 | C16: C20195162 | D16: =COUNTIF(Parts!$G$5:$G$200, Wheels!B16) -> 1 | E16: =COUNTIF(Parts!$F$5:$F$200, Wheels!C16) -> 15 | F16: =IFERROR(IF(B16<>"",INDEX($B$4:$B$110,MATCH(0,COUNTIF($F$3:F15,$B$4:$B$110),0)),""),"") -> 43509 | G16: =IF(F16="","",SUMPRODUCT(--($B$4:$B$110=F16),$D$4:$D$110)) -> 1 | H16: =IFERROR(IF(C16<>"",INDEX($C$4:$C$110,MATCH(0,COUNTIF($H$3:H15,$C$4:$C$110),0)),""),"") ->  | I16: =IF(H16="","",SUMPRODUCT(--($C$4:$C$110=H16),$E$4:$E$110)) -> 
A17: 14 | B17: 46961 | C17: C20195162 | D17: =COUNTIF(Parts!$G$5:$G$200, Wheels!B17) -> 1 | E17: =COUNTIF(Parts!$F$5:$F$200, Wheels!C17) -> 15 | F17: =IFERROR(IF(B17<>"",INDEX($B$4:$B$110,MATCH(0,COUNTIF($F$3:F16,$B$4:$B$110),0)),""),"") -> 46961 | G17: =IF(F17="","",SUMPRODUCT(--($B$4:$B$110=F17),$D$4:$D$110)) -> 1 | H17: =IFERROR(IF(C17<>"",INDEX($C$4:$C$110,MATCH(0,COUNTIF($H$3:H16,$C$4:$C$110),0)),""),"") ->  | I17: =IF(H17="","",SUMPRODUCT(--($C$4:$C$110=H17),$E$4:$E$110)) -> 
A18: 15 | B18: 48901 | C18: C20195162 | D18: =COUNTIF(Parts!$G$5:$G$200, Wheels!B18) -> 1 | E18: =COUNTIF(Parts!$F$5:$F$200, Wheels!C18) -> 15 | F18: =IFERROR(IF(B18<>"",INDEX($B$4:$B$110,MATCH(0,COUNTIF($F$3:F17,$B$4:$B$110),0)),""),"") -> 48901 | G18: =IF(F18="","",SUMPRODUCT(--($B$4:$B$110=F18),$D$4:$D$110)) -> 1 | H18: =IFERROR(IF(C18<>"",INDEX($C$4:$C$110,MATCH(0,COUNTIF($H$3:H17,$C$4:$C$110),0)),""),"") ->  | I18: =IF(H18="","",SUMPRODUCT(--($C$4:$C$110=H18),$E$4:$E$110)) -> 
A19: 16 | B19: A9197 | C19: 3-1531-3 | D19: =COUNTIF(Parts!$G$5:$G$200, Wheels!B19) -> 1 | E19: =COUNTIF(Parts!$F$5:$F$200, Wheels!C19) -> 17 | F19: =IFERROR(IF(B19<>"",INDEX($B$4:$B$110,MATCH(0,COUNTIF($F$3:F18,$B$4:$B$110),0)),""),"") -> A9197 | G19: =IF(F19="","",SUMPRODUCT(--($B$4:$B$110=F19),$D$4:$D$110)) -> 1 | H19: =IFERROR(IF(C19<>"",INDEX($C$4:$C$110,MATCH(0,COUNTIF($H$3:H18,$C$4:$C$110),0)),""),"") ->  | I19: =IF(H19="","",SUMPRODUCT(--($C$4:$C$110=H19),$E$4:$E$110)) -> 
A20: 17 | B20: A9195 | C20: 3-1531-3 | D20: =COUNTIF(Parts!$G$5:$G$200, Wheels!B20) -> 1 | E20: =COUNTIF(Parts!$F$5:$F$200, Wheels!C20) -> 17 | F20: =IFERROR(IF(B20<>"",INDEX($B$4:$B$110,MATCH(0,COUNTIF($F$3:F19,$B$4:$B$110),0)),""),"") -> A9195 | G20: =IF(F20="","",SUMPRODUCT(--($B$4:$B$110=F20),$D$4:$D$110)) -> 1 | H20: =IFERROR(IF(C20<>"",INDEX($C$4:$C$110,MATCH(0,COUNTIF($H$3:H19,$C$4:$C$110),0)),""),"") ->  | I20: =IF(H20="","",SUMPRODUCT(--($C$4:$C$110=H20),$E$4:$E$110)) -> 
A21: 18 | B21: 6905 | C21: 3-1531-3 | D21: =COUNTIF(Parts!$G$5:$G$200, Wheels!B21) -> 1 | E21: =COUNTIF(Parts!$F$5:$F$200, Wheels!C21) -> 17 | F21: =IFERROR(IF(B21<>"",INDEX($B$4:$B$110,MATCH(0,COUNTIF($F$3:F20,$B$4:$B$110),0)),""),"") -> 6905 | G21: =IF(F21="","",SUMPRODUCT(--($B$4:$B$110=F21),$D$4:$D$110)) -> 1 | H21: =IFERROR(IF(C21<>"",INDEX($C$4:$C$110,MATCH(0,COUNTIF($H$3:H20,$C$4:$C$110),0)),""),"") ->  | I21: =IF(H21="","",SUMPRODUCT(--($C$4:$C$110=H21),$E$4:$E$110)) -> 
A22: 19 | B22: 5426 | C22: 3-1531-3 | D22: =COUNTIF(Parts!$G$5:$G$200, Wheels!B22) -> 1 | E22: =COUNTIF(Parts!$F$5:$F$200, Wheels!C22) -> 17 | F22: =IFERROR(IF(B22<>"",INDEX($B$4:$B$110,MATCH(0,COUNTIF($F$3:F21,$B$4:$B$110),0)),""),"") -> 5426 | G22: =IF(F22="","",SUMPRODUCT(--($B$4:$B$110=F22),$D$4:$D$110)) -> 1 | H22: =IFERROR(IF(C22<>"",INDEX($C$4:$C$110,MATCH(0,COUNTIF($H$3:H21,$C$4:$C$110),0)),""),"") ->  | I22: =IF(H22="","",SUMPRODUCT(--($C$4:$C$110=H22),$E$4:$E$110)) -> 
A23: 20 | B23: A6656 | C23: 3-1531-3 | D23: =COUNTIF(Parts!$G$5:$G$200, Wheels!B23) -> 1 | E23: =COUNTIF(Parts!$F$5:$F$200, Wheels!C23) -> 17 | F23: =IFERROR(IF(B23<>"",INDEX($B$4:$B$110,MATCH(0,COUNTIF($F$3:F22,$B$4:$B$110),0)),""),"") -> A6656 | G23: =IF(F23="","",SUMPRODUCT(--($B$4:$B$110=F23),$D$4:$D$110)) -> 1 | H23: =IFERROR(IF(C23<>"",INDEX($C$4:$C$110,MATCH(0,COUNTIF($H$3:H22,$C$4:$C$110),0)),""),"") ->  | I23: =IF(H23="","",SUMPRODUCT(--($C$4:$C$110=H23),$E$4:$E$110)) -> 
A24: 21 | B24: A7028 | C24: 3-1531-3 | D24: =COUNTIF(Parts!$G$5:$G$200, Wheels!B24) -> 1 | E24: =COUNTIF(Parts!$F$5:$F$200, Wheels!C24) -> 17 | F24: =IFERROR(IF(B24<>"",INDEX($B$4:$B$110,MATCH(0,COUNTIF($F$3:F23,$B$4:$B$110),0)),""),"") -> A7028 | G24: =IF(F24="","",SUMPRODUCT(--($B$4:$B$110=F24),$D$4:$D$110)) -> 1 | H24: =IFERROR(IF(C24<>"",INDEX($C$4:$C$110,MATCH(0,COUNTIF($H$3:H23,$C$4:$C$110),0)),""),"") ->  | I24: =IF(H24="","",SUMPRODUCT(--($C$4:$C$110=H24),$E$4:$E$110)) -> 
A25: 22 | B25: A6241 | C25: 3-1531-3 | D25: =COUNTIF(Parts!$G$5:$G$200, Wheels!B25) -> 1 | E25: =COUNTIF(Parts!$F$5:$F$200, Wheels!C25) -> 17 | F25: =IFERROR(IF(B25<>"",INDEX($B$4:$B$110,MATCH(0,COUNTIF($F$3:F24,$B$4:$B$110),0)),""),"") -> A6241 | G25: =IF(F25="","",SUMPRODUCT(--($B$4:$B$110=F25),$D$4:$D$110)) -> 1 | H25: =IFERROR(IF(C25<>"",INDEX($C$4:$C$110,MATCH(0,COUNTIF($H$3:H24,$C$4:$C$110),0)),""),"") ->  | I25: =IF(H25="","",SUMPRODUCT(--($C$4:$C$110=H25),$E$4:$E$110)) -> 
A26: 23 | B26: A2693 | C26: 3-1531-3 | D26: =COUNTIF(Parts!$G$5:$G$200, Wheels!B26) -> 1 | E26: =COUNTIF(Parts!$F$5:$F$200, Wheels!C26) -> 17 | F26: =IFERROR(IF(B26<>"",INDEX($B$4:$B$110,MATCH(0,COUNTIF($F$3:F25,$B$4:$B$110),0)),""),"") -> A2693 | G26: =IF(F26="","",SUMPRODUCT(--($B$4:$B$110=F26),$D$4:$D$110)) -> 1 | H26: =IFERROR(IF(C26<>"",INDEX($C$4:$C$110,MATCH(0,COUNTIF($H$3:H25,$C$4:$C$110),0)),""),"") ->  | I26: =IF(H26="","",SUMPRODUCT(--($C$4:$C$110=H26),$E$4:$E$110)) -> 
A27: 24 | B27: 4459 | C27: 3-1531-3 | D27: =COUNTIF(Parts!$G$5:$G$200, Wheels!B27) -> 1 | E27: =COUNTIF(Parts!$F$5:$F$200, Wheels!C27) -> 17 | F27: =IFERROR(IF(B27<>"",INDEX($B$4:$B$110,MATCH(0,COUNTIF($F$3:F26,$B$4:$B$110),0)),""),"") -> 4459 | G27: =IF(F27="","",SUMPRODUCT(--($B$4:$B$110=F27),$D$4:$D$110)) -> 1 | H27: =IFERROR(IF(C27<>"",INDEX($C$4:$C$110,MATCH(0,COUNTIF($H$3:H26,$C$4:$C$110),0)),""),"") ->  | I27: =IF(H27="","",SUMPRODUCT(--($C$4:$C$110=H27),$E$4:$E$110)) -> 
A28: 25 | B28: 0086 | C28: 3-1531-3 | D28: =COUNTIF(Parts!$G$5:$G$200, Wheels!B28) -> 1 | E28: =COUNTIF(Parts!$F$5:$F$200, Wheels!C28) -> 17 | F28: =IFERROR(IF(B28<>"",INDEX($B$4:$B$110,MATCH(0,COUNTIF($F$3:F27,$B$4:$B$110),0)),""),"") -> 0086 | G28: =IF(F28="","",SUMPRODUCT(--($B$4:$B$110=F28),$D$4:$D$110)) -> 1 | H28: =IFERROR(IF(C28<>"",INDEX($C$4:$C$110,MATCH(0,COUNTIF($H$3:H27,$C$4:$C$110),0)),""),"") ->  | I28: =IF(H28="","",SUMPRODUCT(--($C$4:$C$110=H28),$E$4:$E$110)) -> 
A29: 26 | B29: 6901 | C29: 3-1531-3 | D29: =COUNTIF(Parts!$G$5:$G$200, Wheels!B29) -> 1 | E29: =COUNTIF(Parts!$F$5:$F$200, Wheels!C29) -> 17 | F29: =IFERROR(IF(B29<>"",INDEX($B$4:$B$110,MATCH(0,COUNTIF($F$3:F28,$B$4:$B$110),0)),""),"") -> 6901 | G29: =IF(F29="","",SUMPRODUCT(--($B$4:$B$110=F29),$D$4:$D$110)) -> 1 | H29: =IFERROR(IF(C29<>"",INDEX($C$4:$C$110,MATCH(0,COUNTIF($H$3:H28,$C$4:$C$110),0)),""),"") ->  | I29: =IF(H29="","",SUMPRODUCT(--($C$4:$C$110=H29),$E$4:$E$110)) -> 
A30: 27 | B30: 0389 | C30: 3-1531-3 | D30: =COUNTIF(Parts!$G$5:$G$200, Wheels!B30) -> 1 | E30: =COUNTIF(Parts!$F$5:$F$200, Wheels!C30) -> 17 | F30: =IFERROR(IF(B30<>"",INDEX($B$4:$B$110,MATCH(0,COUNTIF($F$3:F29,$B$4:$B$110),0)),""),"") -> 0389 | G30: =IF(F30="","",SUMPRODUCT(--($B$4:$B$110=F30),$D$4:$D$110)) -> 1 | H30: =IFERROR(IF(C30<>"",INDEX($C$4:$C$110,MATCH(0,COUNTIF($H$3:H29,$C$4:$C$110),0)),""),"") ->  | I30: =IF(H30="","",SUMPRODUCT(--($C$4:$C$110=H30),$E$4:$E$110)) -> 
A31: 28 | B31: 3023 | C31: 3-1531-3 | D31: =COUNTIF(Parts!$G$5:$G$200, Wheels!B31) -> 1 | E31: =COUNTIF(Parts!$F$5:$F$200, Wheels!C31) -> 17 | F31: =IFERROR(IF(B31<>"",INDEX($B$4:$B$110,MATCH(0,COUNTIF($F$3:F30,$B$4:$B$110),0)),""),"") -> 3023 | G31: =IF(F31="","",SUMPRODUCT(--($B$4:$B$110=F31),$D$4:$D$110)) -> 1 | H31: =IFERROR(IF(C31<>"",INDEX($C$4:$C$110,MATCH(0,COUNTIF($H$3:H30,$C$4:$C$110),0)),""),"") ->  | I31: =IF(H31="","",SUMPRODUCT(--($C$4:$C$110=H31),$E$4:$E$110)) -> 
A32: 29 | B32: 8538 | C32: 3-1531-3 | D32: =COUNTIF(Parts!$G$5:$G$200, Wheels!B32) -> 1 | E32: =COUNTIF(Parts!$F$5:$F$200, Wheels!C32) -> 17 | F32: =IFERROR(IF(B32<>"",INDEX($B$4:$B$110,MATCH(0,COUNTIF($F$3:F31,$B$4:$B$110),0)),""),"") -> 8538 | G32: =IF(F32="","",SUMPRODUCT(--($B$4:$B$110=F32),$D$4:$D$110)) -> 1 | H32: =IFERROR(IF(C32<>"",INDEX($C$4:$C$110,MATCH(0,COUNTIF($H$3:H31,$C$4:$C$110),0)),""),"") ->  | I32: =IF(H32="","",SUMPRODUCT(--($C$4:$C$110=H32),$E$4:$E$110)) -> 
A33: 30 | B33: A4793 | C33: 3-1531-3 | D33: =COUNTIF(Parts!$G$5:$G$200, Wheels!B33) -> 1 | E33: =COUNTIF(Parts!$F$5:$F$200, Wheels!C33) -> 17 | F33: =IFERROR(IF(B33<>"",INDEX($B$4:$B$110,MATCH(0,COUNTIF($F$3:F32,$B$4:$B$110),0)),""),"") -> A4793 | G33: =IF(F33="","",SUMPRODUCT(--($B$4:$B$110=F33),$D$4:$D$110)) -> 1 | H33: =IFERROR(IF(C33<>"",INDEX($C$4:$C$110,MATCH(0,COUNTIF($H$3:H32,$C$4:$C$110),0)),""),"") ->  | I33: =IF(H33="","",SUMPRODUCT(--($C$4:$C$110=H33),$E$4:$E$110)) -> 
A34: 31 | B34: 7091 | C34: 3-1531-3 | D34: =COUNTIF(Parts!$G$5:$G$200, Wheels!B34) -> 1 | E34: =COUNTIF(Parts!$F$5:$F$200, Wheels!C34) -> 17 | F34: =IFERROR(IF(B34<>"",INDEX($B$4:$B$110,MATCH(0,COUNTIF($F$3:F33,$B$4:$B$110),0)),""),"") -> 7091 | G34: =IF(F34="","",SUMPRODUCT(--($B$4:$B$110=F34),$D$4:$D$110)) -> 1 | H34: =IFERROR(IF(C34<>"",INDEX($C$4:$C$110,MATCH(0,COUNTIF($H$3:H33,$C$4:$C$110),0)),""),"") ->  | I34: =IF(H34="","",SUMPRODUCT(--($C$4:$C$110=H34),$E$4:$E$110)) -> 
A35: 32 | B35: 9424 | C35: 3-1531-3 | D35: =COUNTIF(Parts!$G$5:$G$200, Wheels!B35) -> 1 | E35: =COUNTIF(Parts!$F$5:$F$200, Wheels!C35) -> 17 | F35: =IFERROR(IF(B35<>"",INDEX($B$4:$B$110,MATCH(0,COUNTIF($F$3:F34,$B$4:$B$110),0)),""),"") -> 9424 | G35: =IF(F35="","",SUMPRODUCT(--($B$4:$B$110=F35),$D$4:$D$110)) -> 1 | H35: =IFERROR(IF(C35<>"",INDEX($C$4:$C$110,MATCH(0,COUNTIF($H$3:H34,$C$4:$C$110),0)),""),"") ->  | I35: =IF(H35="","",SUMPRODUCT(--($C$4:$C$110=H35),$E$4:$E$110)) -> 
A36: 33 | B36: 500 | C36: 3-1531-4 | D36: =COUNTIF(Parts!$G$5:$G$200, Wheels!B36) -> 1 | E36: =COUNTIF(Parts!$F$5:$F$200, Wheels!C36) -> 1 | F36: =IFERROR(IF(B36<>"",INDEX($B$4:$B$110,MATCH(0,COUNTIF($F$3:F35,$B$4:$B$110),0)),""),"") -> 500 | G36: =IF(F36="","",SUMPRODUCT(--($B$4:$B$110=F36),$D$4:$D$110)) -> 1 | H36: =IFERROR(IF(C36<>"",INDEX($C$4:$C$110,MATCH(0,COUNTIF($H$3:H35,$C$4:$C$110),0)),""),"") ->  | I36: =IF(H36="","",SUMPRODUCT(--($C$4:$C$110=H36),$E$4:$E$110)) -> 
A37: 34 | B37: 900 | C37: 3-1531-5 | D37: =COUNTIF(Parts!$G$5:$G$200, Wheels!B37) -> 1 | E37: =COUNTIF(Parts!$F$5:$F$200, Wheels!C37) -> 1 | F37: =IFERROR(IF(B37<>"",INDEX($B$4:$B$110,MATCH(0,COUNTIF($F$3:F36,$B$4:$B$110),0)),""),"") -> 900 | G37: =IF(F37="","",SUMPRODUCT(--($B$4:$B$110=F37),$D$4:$D$110)) -> 1 | H37: =IFERROR(IF(C37<>"",INDEX($C$4:$C$110,MATCH(0,COUNTIF($H$3:H36,$C$4:$C$110),0)),""),"") ->  | I37: =IF(H37="","",SUMPRODUCT(--($C$4:$C$110=H37),$E$4:$E$110)) -> 
A38: 35 | B38: 5200 | D38: =COUNTIF(Parts!$G$5:$G$200, Wheels!B38) -> 1 | E38: =COUNTIF(Parts!$F$5:$F$200, Wheels!C38) -> 0 | F38: =IFERROR(IF(B38<>"",INDEX($B$4:$B$110,MATCH(0,COUNTIF($F$3:F37,$B$4:$B$110),0)),""),"") -> 5200 | G38: =IF(F38="","",SUMPRODUCT(--($B$4:$B$110=F38),$D$4:$D$110)) -> 1 | H38: =IFERROR(IF(C38<>"",INDEX($C$4:$C$110,MATCH(0,COUNTIF($H$3:H37,$C$4:$C$110),0)),""),"") ->  | I38: =IF(H38="","",SUMPRODUCT(--($C$4:$C$110=H38),$E$4:$E$110)) -> 
A39: 36 | D39: =COUNTIF(Parts!$G$5:$G$200, Wheels!B39) -> 0 | E39: =COUNTIF(Parts!$F$5:$F$200, Wheels!C39) -> 0 | F39: =IFERROR(IF(B39<>"",INDEX($B$4:$B$110,MATCH(0,COUNTIF($F$3:F38,$B$4:$B$110),0)),""),"") ->  | G39: =IF(F39="","",SUMPRODUCT(--($B$4:$B$110=F39),$D$4:$D$110)) ->  | H39: =IFERROR(IF(C39<>"",INDEX($C$4:$C$110,MATCH(0,COUNTIF($H$3:H38,$C$4:$C$110),0)),""),"") ->  | I39: =IF(H39="","",SUMPRODUCT(--($C$4:$C$110=H39),$E$4:$E$110)) -> 
A40: 37 | D40: =COUNTIF(Parts!$G$5:$G$200, Wheels!B40) -> 0 | E40: =COUNTIF(Parts!$F$5:$F$200, Wheels!C40) -> 0 | F40: =IFERROR(IF(B40<>"",INDEX($B$4:$B$110,MATCH(0,COUNTIF($F$3:F39,$B$4:$B$110),0)),""),"") ->  | G40: =IF(F40="","",SUMPRODUCT(--($B$4:$B$110=F40),$D$4:$D$110)) ->  | H40: =IFERROR(IF(C40<>"",INDEX($C$4:$C$110,MATCH(0,COUNTIF($H$3:H39,$C$4:$C$110),0)),""),"") ->  | I40: =IF(H40="","",SUMPRODUCT(--($C$4:$C$110=H40),$E$4:$E$110)) -> 
A41: 38 | D41: =COUNTIF(Parts!$G$5:$G$200, Wheels!B41) -> 0 | E41: =COUNTIF(Parts!$F$5:$F$200, Wheels!C41) -> 0 | F41: =IFERROR(IF(B41<>"",INDEX($B$4:$B$110,MATCH(0,COUNTIF($F$3:F40,$B$4:$B$110),0)),""),"") ->  | G41: =IF(F41="","",SUMPRODUCT(--($B$4:$B$110=F41),$D$4:$D$110)) ->  | H41: =IFERROR(IF(C41<>"",INDEX($C$4:$C$110,MATCH(0,COUNTIF($H$3:H40,$C$4:$C$110),0)),""),"") ->  | I41: =IF(H41="","",SUMPRODUCT(--($C$4:$C$110=H41),$E$4:$E$110)) -> 
A42: 39 | D42: =COUNTIF(Parts!$G$5:$G$200, Wheels!B42) -> 0 | E42: =COUNTIF(Parts!$F$5:$F$200, Wheels!C42) -> 0 | F42: =IFERROR(IF(B42<>"",INDEX($B$4:$B$110,MATCH(0,COUNTIF($F$3:F41,$B$4:$B$110),0)),""),"") ->  | G42: =IF(F42="","",SUMPRODUCT(--($B$4:$B$110=F42),$D$4:$D$110)) ->  | H42: =IFERROR(IF(C42<>"",INDEX($C$4:$C$110,MATCH(0,COUNTIF($H$3:H41,$C$4:$C$110),0)),""),"") ->  | I42: =IF(H42="","",SUMPRODUCT(--($C$4:$C$110=H42),$E$4:$E$110)) -> 
A43: 40 | D43: =COUNTIF(Parts!$G$5:$G$200, Wheels!B43) -> 0 | E43: =COUNTIF(Parts!$F$5:$F$200, Wheels!C43) -> 0 | F43: =IFERROR(IF(B43<>"",INDEX($B$4:$B$110,MATCH(0,COUNTIF($F$3:F42,$B$4:$B$110),0)),""),"") ->  | G43: =IF(F43="","",SUMPRODUCT(--($B$4:$B$110=F43),$D$4:$D$110)) ->  | H43: =IFERROR(IF(C43<>"",INDEX($C$4:$C$110,MATCH(0,COUNTIF($H$3:H42,$C$4:$C$110),0)),""),"") ->  | I43: =IF(H43="","",SUMPRODUCT(--($C$4:$C$110=H43),$E$4:$E$110)) -> 
A44: 41 | D44: =COUNTIF(Parts!$G$5:$G$200, Wheels!B44) -> 0 | E44: =COUNTIF(Parts!$F$5:$F$200, Wheels!C44) -> 0 | F44: =IFERROR(IF(B44<>"",INDEX($B$4:$B$110,MATCH(0,COUNTIF($F$3:F43,$B$4:$B$110),0)),""),"") ->  | G44: =IF(F44="","",SUMPRODUCT(--($B$4:$B$110=F44),$D$4:$D$110)) ->  | H44: =IFERROR(IF(C44<>"",INDEX($C$4:$C$110,MATCH(0,COUNTIF($H$3:H43,$C$4:$C$110),0)),""),"") ->  | I44: =IF(H44="","",SUMPRODUCT(--($C$4:$C$110=H44),$E$4:$E$110)) -> 
A45: 42 | D45: =COUNTIF(Parts!$G$5:$G$200, Wheels!B45) -> 0 | E45: =COUNTIF(Parts!$F$5:$F$200, Wheels!C45) -> 0 | F45: =IFERROR(IF(B45<>"",INDEX($B$4:$B$110,MATCH(0,COUNTIF($F$3:F44,$B$4:$B$110),0)),""),"") ->  | G45: =IF(F45="","",SUMPRODUCT(--($B$4:$B$110=F45),$D$4:$D$110)) ->  | H45: =IFERROR(IF(C45<>"",INDEX($C$4:$C$110,MATCH(0,COUNTIF($H$3:H44,$C$4:$C$110),0)),""),"") ->  | I45: =IF(H45="","",SUMPRODUCT(--($C$4:$C$110=H45),$E$4:$E$110)) -> 
A46: 43 | D46: =COUNTIF(Parts!$G$5:$G$200, Wheels!B46) -> 0 | E46: =COUNTIF(Parts!$F$5:$F$200, Wheels!C46) -> 0 | F46: =IFERROR(IF(B46<>"",INDEX($B$4:$B$110,MATCH(0,COUNTIF($F$3:F45,$B$4:$B$110),0)),""),"") ->  | G46: =IF(F46="","",SUMPRODUCT(--($B$4:$B$110=F46),$D$4:$D$110)) ->  | H46: =IFERROR(IF(C46<>"",INDEX($C$4:$C$110,MATCH(0,COUNTIF($H$3:H45,$C$4:$C$110),0)),""),"") ->  | I46: =IF(H46="","",SUMPRODUCT(--($C$4:$C$110=H46),$E$4:$E$110)) -> 
A47: 44 | D47: =COUNTIF(Parts!$G$5:$G$200, Wheels!B47) -> 0 | E47: =COUNTIF(Parts!$F$5:$F$200, Wheels!C47) -> 0 | F47: =IFERROR(IF(B47<>"",INDEX($B$4:$B$110,MATCH(0,COUNTIF($F$3:F46,$B$4:$B$110),0)),""),"") ->  | G47: =IF(F47="","",SUMPRODUCT(--($B$4:$B$110=F47),$D$4:$D$110)) ->  | H47: =IFERROR(IF(C47<>"",INDEX($C$4:$C$110,MATCH(0,COUNTIF($H$3:H46,$C$4:$C$110),0)),""),"") ->  | I47: =IF(H47="","",SUMPRODUCT(--($C$4:$C$110=H47),$E$4:$E$110)) -> 
A48: 45 | D48: =COUNTIF(Parts!$G$5:$G$200, Wheels!B48) -> 0 | E48: =COUNTIF(Parts!$F$5:$F$200, Wheels!C48) -> 0 | F48: =IFERROR(IF(B48<>"",INDEX($B$4:$B$110,MATCH(0,COUNTIF($F$3:F47,$B$4:$B$110),0)),""),"") ->  | G48: =IF(F48="","",SUMPRODUCT(--($B$4:$B$110=F48),$D$4:$D$110)) ->  | H48: =IFERROR(IF(C48<>"",INDEX($C$4:$C$110,MATCH(0,COUNTIF($H$3:H47,$C$4:$C$110),0)),""),"") ->  | I48: =IF(H48="","",SUMPRODUCT(--($C$4:$C$110=H48),$E$4:$E$110)) -> 
A49: 46 | D49: =COUNTIF(Parts!$G$5:$G$200, Wheels!B49) -> 0 | E49: =COUNTIF(Parts!$F$5:$F$200, Wheels!C49) -> 0 | F49: =IFERROR(IF(B49<>"",INDEX($B$4:$B$110,MATCH(0,COUNTIF($F$3:F48,$B$4:$B$110),0)),""),"") ->  | G49: =IF(F49="","",SUMPRODUCT(--($B$4:$B$110=F49),$D$4:$D$110)) ->  | H49: =IFERROR(IF(C49<>"",INDEX($C$4:$C$110,MATCH(0,COUNTIF($H$3:H48,$C$4:$C$110),0)),""),"") ->  | I49: =IF(H49="","",SUMPRODUCT(--($C$4:$C$110=H49),$E$4:$E$110)) -> 
A50: 47 | D50: =COUNTIF(Parts!$G$5:$G$200, Wheels!B50) -> 0 | E50: =COUNTIF(Parts!$F$5:$F$200, Wheels!C50) -> 0 | F50: =IFERROR(IF(B50<>"",INDEX($B$4:$B$110,MATCH(0,COUNTIF($F$3:F49,$B$4:$B$110),0)),""),"") ->  | G50: =IF(F50="","",SUMPRODUCT(--($B$4:$B$110=F50),$D$4:$D$110)) ->  | H50: =IFERROR(IF(C50<>"",INDEX($C$4:$C$110,MATCH(0,COUNTIF($H$3:H49,$C$4:$C$110),0)),""),"") ->  | I50: =IF(H50="","",SUMPRODUCT(--($C$4:$C$110=H50),$E$4:$E$110)) -> 
A51: 48 | D51: =COUNTIF(Parts!$G$5:$G$200, Wheels!B51) -> 0 | E51: =COUNTIF(Parts!$F$5:$F$200, Wheels!C51) -> 0 | F51: =IFERROR(IF(B51<>"",INDEX($B$4:$B$110,MATCH(0,COUNTIF($F$3:F50,$B$4:$B$110),0)),""),"") ->  | G51: =IF(F51="","",SUMPRODUCT(--($B$4:$B$110=F51),$D$4:$D$110)) ->  | H51: =IFERROR(IF(C51<>"",INDEX($C$4:$C$110,MATCH(0,COUNTIF($H$3:H50,$C$4:$C$110),0)),""),"") ->  | I51: =IF(H51="","",SUMPRODUCT(--($C$4:$C$110=H51),$E$4:$E$110)) -> 
A52: 49 | D52: =COUNTIF(Parts!$G$5:$G$200, Wheels!B52) -> 0 | E52: =COUNTIF(Parts!$F$5:$F$200, Wheels!C52) -> 0 | F52: =IFERROR(IF(B52<>"",INDEX($B$4:$B$110,MATCH(0,COUNTIF($F$3:F51,$B$4:$B$110),0)),""),"") ->  | G52: =IF(F52="","",SUMPRODUCT(--($B$4:$B$110=F52),$D$4:$D$110)) ->  | H52: =IFERROR(IF(C52<>"",INDEX($C$4:$C$110,MATCH(0,COUNTIF($H$3:H51,$C$4:$C$110),0)),""),"") ->  | I52: =IF(H52="","",SUMPRODUCT(--($C$4:$C$110=H52),$E$4:$E$110)) -> 
A53: 50 | D53: =COUNTIF(Parts!$G$5:$G$200, Wheels!B53) -> 0 | E53: =COUNTIF(Parts!$F$5:$F$200, Wheels!C53) -> 0 | F53: =IFERROR(IF(B53<>"",INDEX($B$4:$B$110,MATCH(0,COUNTIF($F$3:F52,$B$4:$B$110),0)),""),"") ->  | G53: =IF(F53="","",SUMPRODUCT(--($B$4:$B$110=F53),$D$4:$D$110)) ->  | H53: =IFERROR(IF(C53<>"",INDEX($C$4:$C$110,MATCH(0,COUNTIF($H$3:H52,$C$4:$C$110),0)),""),"") ->  | I53: =IF(H53="","",SUMPRODUCT(--($C$4:$C$110=H53),$E$4:$E$110)) -> 
A54: 51 | D54: =COUNTIF(Parts!$G$5:$G$200, Wheels!B54) -> 0 | E54: =COUNTIF(Parts!$F$5:$F$200, Wheels!C54) -> 0 | F54: =IFERROR(IF(B54<>"",INDEX($B$4:$B$110,MATCH(0,COUNTIF($F$3:F53,$B$4:$B$110),0)),""),"") ->  | G54: =IF(F54="","",SUMPRODUCT(--($B$4:$B$110=F54),$D$4:$D$110)) ->  | H54: =IFERROR(IF(C54<>"",INDEX($C$4:$C$110,MATCH(0,COUNTIF($H$3:H53,$C$4:$C$110),0)),""),"") ->  | I54: =IF(H54="","",SUMPRODUCT(--($C$4:$C$110=H54),$E$4:$E$110)) -> 
A55: 52 | D55: =COUNTIF(Parts!$G$5:$G$200, Wheels!B55) -> 0 | E55: =COUNTIF(Parts!$F$5:$F$200, Wheels!C55) -> 0 | F55: =IFERROR(IF(B55<>"",INDEX($B$4:$B$110,MATCH(0,COUNTIF($F$3:F54,$B$4:$B$110),0)),""),"") ->  | G55: =IF(F55="","",SUMPRODUCT(--($B$4:$B$110=F55),$D$4:$D$110)) ->  | H55: =IFERROR(IF(C55<>"",INDEX($C$4:$C$110,MATCH(0,COUNTIF($H$3:H54,$C$4:$C$110),0)),""),"") ->  | I55: =IF(H55="","",SUMPRODUCT(--($C$4:$C$110=H55),$E$4:$E$110)) -> 
A56: 53 | D56: =COUNTIF(Parts!$G$5:$G$200, Wheels!B56) -> 0 | E56: =COUNTIF(Parts!$F$5:$F$200, Wheels!C56) -> 0 | F56: =IFERROR(IF(B56<>"",INDEX($B$4:$B$110,MATCH(0,COUNTIF($F$3:F55,$B$4:$B$110),0)),""),"") ->  | G56: =IF(F56="","",SUMPRODUCT(--($B$4:$B$110=F56),$D$4:$D$110)) ->  | H56: =IFERROR(IF(C56<>"",INDEX($C$4:$C$110,MATCH(0,COUNTIF($H$3:H55,$C$4:$C$110),0)),""),"") ->  | I56: =IF(H56="","",SUMPRODUCT(--($C$4:$C$110=H56),$E$4:$E$110)) -> 
A57: 54 | D57: =COUNTIF(Parts!$G$5:$G$200, Wheels!B57) -> 0 | E57: =COUNTIF(Parts!$F$5:$F$200, Wheels!C57) -> 0 | F57: =IFERROR(IF(B57<>"",INDEX($B$4:$B$110,MATCH(0,COUNTIF($F$3:F56,$B$4:$B$110),0)),""),"") ->  | G57: =IF(F57="","",SUMPRODUCT(--($B$4:$B$110=F57),$D$4:$D$110)) ->  | H57: =IFERROR(IF(C57<>"",INDEX($C$4:$C$110,MATCH(0,COUNTIF($H$3:H56,$C$4:$C$110),0)),""),"") ->  | I57: =IF(H57="","",SUMPRODUCT(--($C$4:$C$110=H57),$E$4:$E$110)) -> 
A58: 55 | D58: =COUNTIF(Parts!$G$5:$G$200, Wheels!B58) -> 0 | E58: =COUNTIF(Parts!$F$5:$F$200, Wheels!C58) -> 0 | F58: =IFERROR(IF(B58<>"",INDEX($B$4:$B$110,MATCH(0,COUNTIF($F$3:F57,$B$4:$B$110),0)),""),"") ->  | G58: =IF(F58="","",SUMPRODUCT(--($B$4:$B$110=F58),$D$4:$D$110)) ->  | H58: =IFERROR(IF(C58<>"",INDEX($C$4:$C$110,MATCH(0,COUNTIF($H$3:H57,$C$4:$C$110),0)),""),"") ->  | I58: =IF(H58="","",SUMPRODUCT(--($C$4:$C$110=H58),$E$4:$E$110)) -> 
A59: 56 | D59: =COUNTIF(Parts!$G$5:$G$200, Wheels!B59) -> 0 | E59: =COUNTIF(Parts!$F$5:$F$200, Wheels!C59) -> 0 | F59: =IFERROR(IF(B59<>"",INDEX($B$4:$B$110,MATCH(0,COUNTIF($F$3:F58,$B$4:$B$110),0)),""),"") ->  | G59: =IF(F59="","",SUMPRODUCT(--($B$4:$B$110=F59),$D$4:$D$110)) ->  | H59: =IFERROR(IF(C59<>"",INDEX($C$4:$C$110,MATCH(0,COUNTIF($H$3:H58,$C$4:$C$110),0)),""),"") ->  | I59: =IF(H59="","",SUMPRODUCT(--($C$4:$C$110=H59),$E$4:$E$110)) -> 
A60: 57 | D60: =COUNTIF(Parts!$G$5:$G$200, Wheels!B60) -> 0 | E60: =COUNTIF(Parts!$F$5:$F$200, Wheels!C60) -> 0 | F60: =IFERROR(IF(B60<>"",INDEX($B$4:$B$110,MATCH(0,COUNTIF($F$3:F59,$B$4:$B$110),0)),""),"") ->  | G60: =IF(F60="","",SUMPRODUCT(--($B$4:$B$110=F60),$D$4:$D$110)) ->  | H60: =IFERROR(IF(C60<>"",INDEX($C$4:$C$110,MATCH(0,COUNTIF($H$3:H59,$C$4:$C$110),0)),""),"") ->  | I60: =IF(H60="","",SUMPRODUCT(--($C$4:$C$110=H60),$E$4:$E$110)) -> 
A61: 58 | D61: =COUNTIF(Parts!$G$5:$G$200, Wheels!B61) -> 0 | E61: =COUNTIF(Parts!$F$5:$F$200, Wheels!C61) -> 0 | F61: =IFERROR(IF(B61<>"",INDEX($B$4:$B$110,MATCH(0,COUNTIF($F$3:F60,$B$4:$B$110),0)),""),"") ->  | G61: =IF(F61="","",SUMPRODUCT(--($B$4:$B$110=F61),$D$4:$D$110)) ->  | H61: =IFERROR(IF(C61<>"",INDEX($C$4:$C$110,MATCH(0,COUNTIF($H$3:H60,$C$4:$C$110),0)),""),"") ->  | I61: =IF(H61="","",SUMPRODUCT(--($C$4:$C$110=H61),$E$4:$E$110)) -> 
A62: 59 | D62: =COUNTIF(Parts!$G$5:$G$200, Wheels!B62) -> 0 | E62: =COUNTIF(Parts!$F$5:$F$200, Wheels!C62) -> 0 | F62: =IFERROR(IF(B62<>"",INDEX($B$4:$B$110,MATCH(0,COUNTIF($F$3:F61,$B$4:$B$110),0)),""),"") ->  | G62: =IF(F62="","",SUMPRODUCT(--($B$4:$B$110=F62),$D$4:$D$110)) ->  | H62: =IFERROR(IF(C62<>"",INDEX($C$4:$C$110,MATCH(0,COUNTIF($H$3:H61,$C$4:$C$110),0)),""),"") ->  | I62: =IF(H62="","",SUMPRODUCT(--($C$4:$C$110=H62),$E$4:$E$110)) -> 
A63: 60 | D63: =COUNTIF(Parts!$G$5:$G$200, Wheels!B63) -> 0 | E63: =COUNTIF(Parts!$F$5:$F$200, Wheels!C63) -> 0 | F63: =IFERROR(IF(B63<>"",INDEX($B$4:$B$110,MATCH(0,COUNTIF($F$3:F62,$B$4:$B$110),0)),""),"") ->  | G63: =IF(F63="","",SUMPRODUCT(--($B$4:$B$110=F63),$D$4:$D$110)) ->  | H63: =IFERROR(IF(C63<>"",INDEX($C$4:$C$110,MATCH(0,COUNTIF($H$3:H62,$C$4:$C$110),0)),""),"") ->  | I63: =IF(H63="","",SUMPRODUCT(--($C$4:$C$110=H63),$E$4:$E$110)) -> 
A64: 61 | D64: =COUNTIF(Parts!$G$5:$G$200, Wheels!B64) -> 0 | E64: =COUNTIF(Parts!$F$5:$F$200, Wheels!C64) -> 0 | F64: =IFERROR(IF(B64<>"",INDEX($B$4:$B$110,MATCH(0,COUNTIF($F$3:F63,$B$4:$B$110),0)),""),"") ->  | G64: =IF(F64="","",SUMPRODUCT(--($B$4:$B$110=F64),$D$4:$D$110)) ->  | H64: =IFERROR(IF(C64<>"",INDEX($C$4:$C$110,MATCH(0,COUNTIF($H$3:H63,$C$4:$C$110),0)),""),"") ->  | I64: =IF(H64="","",SUMPRODUCT(--($C$4:$C$110=H64),$E$4:$E$110)) -> 
A65: 62 | D65: =COUNTIF(Parts!$G$5:$G$200, Wheels!B65) -> 0 | E65: =COUNTIF(Parts!$F$5:$F$200, Wheels!C65) -> 0 | F65: =IFERROR(IF(B65<>"",INDEX($B$4:$B$110,MATCH(0,COUNTIF($F$3:F64,$B$4:$B$110),0)),""),"") ->  | G65: =IF(F65="","",SUMPRODUCT(--($B$4:$B$110=F65),$D$4:$D$110)) ->  | H65: =IFERROR(IF(C65<>"",INDEX($C$4:$C$110,MATCH(0,COUNTIF($H$3:H64,$C$4:$C$110),0)),""),"") ->  | I65: =IF(H65="","",SUMPRODUCT(--($C$4:$C$110=H65),$E$4:$E$110)) -> 
A66: 63 | D66: =COUNTIF(Parts!$G$5:$G$200, Wheels!B66) -> 0 | E66: =COUNTIF(Parts!$F$5:$F$200, Wheels!C66) -> 0 | F66: =IFERROR(IF(B66<>"",INDEX($B$4:$B$110,MATCH(0,COUNTIF($F$3:F65,$B$4:$B$110),0)),""),"") ->  | G66: =IF(F66="","",SUMPRODUCT(--($B$4:$B$110=F66),$D$4:$D$110)) ->  | H66: =IFERROR(IF(C66<>"",INDEX($C$4:$C$110,MATCH(0,COUNTIF($H$3:H65,$C$4:$C$110),0)),""),"") ->  | I66: =IF(H66="","",SUMPRODUCT(--($C$4:$C$110=H66),$E$4:$E$110)) -> 
A67: 64 | D67: =COUNTIF(Parts!$G$5:$G$200, Wheels!B67) -> 0 | E67: =COUNTIF(Parts!$F$5:$F$200, Wheels!C67) -> 0 | F67: =IFERROR(IF(B67<>"",INDEX($B$4:$B$110,MATCH(0,COUNTIF($F$3:F66,$B$4:$B$110),0)),""),"") ->  | G67: =IF(F67="","",SUMPRODUCT(--($B$4:$B$110=F67),$D$4:$D$110)) ->  | H67: =IFERROR(IF(C67<>"",INDEX($C$4:$C$110,MATCH(0,COUNTIF($H$3:H66,$C$4:$C$110),0)),""),"") ->  | I67: =IF(H67="","",SUMPRODUCT(--($C$4:$C$110=H67),$E$4:$E$110)) -> 
A68: 65 | D68: =COUNTIF(Parts!$G$5:$G$200, Wheels!B68) -> 0 | E68: =COUNTIF(Parts!$F$5:$F$200, Wheels!C68) -> 0 | F68: =IFERROR(IF(B68<>"",INDEX($B$4:$B$110,MATCH(0,COUNTIF($F$3:F67,$B$4:$B$110),0)),""),"") ->  | G68: =IF(F68="","",SUMPRODUCT(--($B$4:$B$110=F68),$D$4:$D$110)) ->  | H68: =IFERROR(IF(C68<>"",INDEX($C$4:$C$110,MATCH(0,COUNTIF($H$3:H67,$C$4:$C$110),0)),""),"") ->  | I68: =IF(H68="","",SUMPRODUCT(--($C$4:$C$110=H68),$E$4:$E$110)) -> 
A69: 66 | D69: =COUNTIF(Parts!$G$5:$G$200, Wheels!B69) -> 0 | E69: =COUNTIF(Parts!$F$5:$F$200, Wheels!C69) -> 0 | F69: =IFERROR(IF(B69<>"",INDEX($B$4:$B$110,MATCH(0,COUNTIF($F$3:F68,$B$4:$B$110),0)),""),"") ->  | G69: =IF(F69="","",SUMPRODUCT(--($B$4:$B$110=F69),$D$4:$D$110)) ->  | H69: =IFERROR(IF(C69<>"",INDEX($C$4:$C$110,MATCH(0,COUNTIF($H$3:H68,$C$4:$C$110),0)),""),"") ->  | I69: =IF(H69="","",SUMPRODUCT(--($C$4:$C$110=H69),$E$4:$E$110)) -> 
A70: 67 | D70: =COUNTIF(Parts!$G$5:$G$200, Wheels!B70) -> 0 | E70: =COUNTIF(Parts!$F$5:$F$200, Wheels!C70) -> 0 | F70: =IFERROR(IF(B70<>"",INDEX($B$4:$B$110,MATCH(0,COUNTIF($F$3:F69,$B$4:$B$110),0)),""),"") ->  | G70: =IF(F70="","",SUMPRODUCT(--($B$4:$B$110=F70),$D$4:$D$110)) ->  | H70: =IFERROR(IF(C70<>"",INDEX($C$4:$C$110,MATCH(0,COUNTIF($H$3:H69,$C$4:$C$110),0)),""),"") ->  | I70: =IF(H70="","",SUMPRODUCT(--($C$4:$C$110=H70),$E$4:$E$110)) -> 
A71: 68 | D71: =COUNTIF(Parts!$G$5:$G$200, Wheels!B71) -> 0 | E71: =COUNTIF(Parts!$F$5:$F$200, Wheels!C71) -> 0 | F71: =IFERROR(IF(B71<>"",INDEX($B$4:$B$110,MATCH(0,COUNTIF($F$3:F70,$B$4:$B$110),0)),""),"") ->  | G71: =IF(F71="","",SUMPRODUCT(--($B$4:$B$110=F71),$D$4:$D$110)) ->  | H71: =IFERROR(IF(C71<>"",INDEX($C$4:$C$110,MATCH(0,COUNTIF($H$3:H70,$C$4:$C$110),0)),""),"") ->  | I71: =IF(H71="","",SUMPRODUCT(--($C$4:$C$110=H71),$E$4:$E$110)) -> 
A72: 69 | D72: =COUNTIF(Parts!$G$5:$G$200, Wheels!B72) -> 0 | E72: =COUNTIF(Parts!$F$5:$F$200, Wheels!C72) -> 0 | F72: =IFERROR(IF(B72<>"",INDEX($B$4:$B$110,MATCH(0,COUNTIF($F$3:F71,$B$4:$B$110),0)),""),"") ->  | G72: =IF(F72="","",SUMPRODUCT(--($B$4:$B$110=F72),$D$4:$D$110)) ->  | H72: =IFERROR(IF(C72<>"",INDEX($C$4:$C$110,MATCH(0,COUNTIF($H$3:H71,$C$4:$C$110),0)),""),"") ->  | I72: =IF(H72="","",SUMPRODUCT(--($C$4:$C$110=H72),$E$4:$E$110)) -> 
A73: 70 | D73: =COUNTIF(Parts!$G$5:$G$200, Wheels!B73) -> 0 | E73: =COUNTIF(Parts!$F$5:$F$200, Wheels!C73) -> 0 | F73: =IFERROR(IF(B73<>"",INDEX($B$4:$B$110,MATCH(0,COUNTIF($F$3:F72,$B$4:$B$110),0)),""),"") ->  | G73: =IF(F73="","",SUMPRODUCT(--($B$4:$B$110=F73),$D$4:$D$110)) ->  | H73: =IFERROR(IF(C73<>"",INDEX($C$4:$C$110,MATCH(0,COUNTIF($H$3:H72,$C$4:$C$110),0)),""),"") ->  | I73: =IF(H73="","",SUMPRODUCT(--($C$4:$C$110=H73),$E$4:$E$110)) -> 
A74: 71 | D74: =COUNTIF(Parts!$G$5:$G$200, Wheels!B74) -> 0 | E74: =COUNTIF(Parts!$F$5:$F$200, Wheels!C74) -> 0 | F74: =IFERROR(IF(B74<>"",INDEX($B$4:$B$110,MATCH(0,COUNTIF($F$3:F73,$B$4:$B$110),0)),""),"") ->  | G74: =IF(F74="","",SUMPRODUCT(--($B$4:$B$110=F74),$D$4:$D$110)) ->  | H74: =IFERROR(IF(C74<>"",INDEX($C$4:$C$110,MATCH(0,COUNTIF($H$3:H73,$C$4:$C$110),0)),""),"") ->  | I74: =IF(H74="","",SUMPRODUCT(--($C$4:$C$110=H74),$E$4:$E$110)) -> 
A75: 72 | D75: =COUNTIF(Parts!$G$5:$G$200, Wheels!B75) -> 0 | E75: =COUNTIF(Parts!$F$5:$F$200, Wheels!C75) -> 0 | F75: =IFERROR(IF(B75<>"",INDEX($B$4:$B$110,MATCH(0,COUNTIF($F$3:F74,$B$4:$B$110),0)),""),"") ->  | G75: =IF(F75="","",SUMPRODUCT(--($B$4:$B$110=F75),$D$4:$D$110)) ->  | H75: =IFERROR(IF(C75<>"",INDEX($C$4:$C$110,MATCH(0,COUNTIF($H$3:H74,$C$4:$C$110),0)),""),"") ->  | I75: =IF(H75="","",SUMPRODUCT(--($C$4:$C$110=H75),$E$4:$E$110)) -> 
A76: 73 | D76: =COUNTIF(Parts!$G$5:$G$200, Wheels!B76) -> 0 | E76: =COUNTIF(Parts!$F$5:$F$200, Wheels!C76) -> 0 | F76: =IFERROR(IF(B76<>"",INDEX($B$4:$B$110,MATCH(0,COUNTIF($F$3:F75,$B$4:$B$110),0)),""),"") ->  | G76: =IF(F76="","",SUMPRODUCT(--($B$4:$B$110=F76),$D$4:$D$110)) ->  | H76: =IFERROR(IF(C76<>"",INDEX($C$4:$C$110,MATCH(0,COUNTIF($H$3:H75,$C$4:$C$110),0)),""),"") ->  | I76: =IF(H76="","",SUMPRODUCT(--($C$4:$C$110=H76),$E$4:$E$110)) -> 
A77: 74 | D77: =COUNTIF(Parts!$G$5:$G$200, Wheels!B77) -> 0 | E77: =COUNTIF(Parts!$F$5:$F$200, Wheels!C77) -> 0 | F77: =IFERROR(IF(B77<>"",INDEX($B$4:$B$110,MATCH(0,COUNTIF($F$3:F76,$B$4:$B$110),0)),""),"") ->  | G77: =IF(F77="","",SUMPRODUCT(--($B$4:$B$110=F77),$D$4:$D$110)) ->  | H77: =IFERROR(IF(C77<>"",INDEX($C$4:$C$110,MATCH(0,COUNTIF($H$3:H76,$C$4:$C$110),0)),""),"") ->  | I77: =IF(H77="","",SUMPRODUCT(--($C$4:$C$110=H77),$E$4:$E$110)) -> 
A78: 75 | D78: =COUNTIF(Parts!$G$5:$G$200, Wheels!B78) -> 0 | E78: =COUNTIF(Parts!$F$5:$F$200, Wheels!C78) -> 0 | F78: =IFERROR(IF(B78<>"",INDEX($B$4:$B$110,MATCH(0,COUNTIF($F$3:F77,$B$4:$B$110),0)),""),"") ->  | G78: =IF(F78="","",SUMPRODUCT(--($B$4:$B$110=F78),$D$4:$D$110)) ->  | H78: =IFERROR(IF(C78<>"",INDEX($C$4:$C$110,MATCH(0,COUNTIF($H$3:H77,$C$4:$C$110),0)),""),"") ->  | I78: =IF(H78="","",SUMPRODUCT(--($C$4:$C$110=H78),$E$4:$E$110)) -> 
A79: 76 | D79: =COUNTIF(Parts!$G$5:$G$200, Wheels!B79) -> 0 | E79: =COUNTIF(Parts!$F$5:$F$200, Wheels!C79) -> 0 | F79: =IFERROR(IF(B79<>"",INDEX($B$4:$B$110,MATCH(0,COUNTIF($F$3:F78,$B$4:$B$110),0)),""),"") ->  | G79: =IF(F79="","",SUMPRODUCT(--($B$4:$B$110=F79),$D$4:$D$110)) ->  | H79: =IFERROR(IF(C79<>"",INDEX($C$4:$C$110,MATCH(0,COUNTIF($H$3:H78,$C$4:$C$110),0)),""),"") ->  | I79: =IF(H79="","",SUMPRODUCT(--($C$4:$C$110=H79),$E$4:$E$110)) -> 
A80: 77 | D80: =COUNTIF(Parts!$G$5:$G$200, Wheels!B80) -> 0 | E80: =COUNTIF(Parts!$F$5:$F$200, Wheels!C80) -> 0 | F80: =IFERROR(IF(B80<>"",INDEX($B$4:$B$110,MATCH(0,COUNTIF($F$3:F79,$B$4:$B$110),0)),""),"") ->  | G80: =IF(F80="","",SUMPRODUCT(--($B$4:$B$110=F80),$D$4:$D$110)) ->  | H80: =IFERROR(IF(C80<>"",INDEX($C$4:$C$110,MATCH(0,COUNTIF($H$3:H79,$C$4:$C$110),0)),""),"") ->  | I80: =IF(H80="","",SUMPRODUCT(--($C$4:$C$110=H80),$E$4:$E$110)) -> 
A81: 78 | D81: =COUNTIF(Parts!$G$5:$G$200, Wheels!B81) -> 0 | E81: =COUNTIF(Parts!$F$5:$F$200, Wheels!C81) -> 0 | F81: =IFERROR(IF(B81<>"",INDEX($B$4:$B$110,MATCH(0,COUNTIF($F$3:F80,$B$4:$B$110),0)),""),"") ->  | G81: =IF(F81="","",SUMPRODUCT(--($B$4:$B$110=F81),$D$4:$D$110)) ->  | H81: =IFERROR(IF(C81<>"",INDEX($C$4:$C$110,MATCH(0,COUNTIF($H$3:H80,$C$4:$C$110),0)),""),"") ->  | I81: =IF(H81="","",SUMPRODUCT(--($C$4:$C$110=H81),$E$4:$E$110)) -> 
A82: 79 | D82: =COUNTIF(Parts!$G$5:$G$200, Wheels!B82) -> 0 | E82: =COUNTIF(Parts!$F$5:$F$200, Wheels!C82) -> 0 | F82: =IFERROR(IF(B82<>"",INDEX($B$4:$B$110,MATCH(0,COUNTIF($F$3:F81,$B$4:$B$110),0)),""),"") ->  | G82: =IF(F82="","",SUMPRODUCT(--($B$4:$B$110=F82),$D$4:$D$110)) ->  | H82: =IFERROR(IF(C82<>"",INDEX($C$4:$C$110,MATCH(0,COUNTIF($H$3:H81,$C$4:$C$110),0)),""),"") ->  | I82: =IF(H82="","",SUMPRODUCT(--($C$4:$C$110=H82),$E$4:$E$110)) -> 
A83: 80 | D83: =COUNTIF(Parts!$G$5:$G$200, Wheels!B83) -> 0 | E83: =COUNTIF(Parts!$F$5:$F$200, Wheels!C83) -> 0 | F83: =IFERROR(IF(B83<>"",INDEX($B$4:$B$110,MATCH(0,COUNTIF($F$3:F82,$B$4:$B$110),0)),""),"") ->  | G83: =IF(F83="","",SUMPRODUCT(--($B$4:$B$110=F83),$D$4:$D$110)) ->  | H83: =IFERROR(IF(C83<>"",INDEX($C$4:$C$110,MATCH(0,COUNTIF($H$3:H82,$C$4:$C$110),0)),""),"") ->  | I83: =IF(H83="","",SUMPRODUCT(--($C$4:$C$110=H83),$E$4:$E$110)) -> 
A84: 81 | D84: =COUNTIF(Parts!$G$5:$G$200, Wheels!B84) -> 0 | E84: =COUNTIF(Parts!$F$5:$F$200, Wheels!C84) -> 0 | F84: =IFERROR(IF(B84<>"",INDEX($B$4:$B$110,MATCH(0,COUNTIF($F$3:F83,$B$4:$B$110),0)),""),"") ->  | G84: =IF(F84="","",SUMPRODUCT(--($B$4:$B$110=F84),$D$4:$D$110)) ->  | H84: =IFERROR(IF(C84<>"",INDEX($C$4:$C$110,MATCH(0,COUNTIF($H$3:H83,$C$4:$C$110),0)),""),"") ->  | I84: =IF(H84="","",SUMPRODUCT(--($C$4:$C$110=H84),$E$4:$E$110)) -> 
A85: 82 | D85: =COUNTIF(Parts!$G$5:$G$200, Wheels!B85) -> 0 | E85: =COUNTIF(Parts!$F$5:$F$200, Wheels!C85) -> 0 | F85: =IFERROR(IF(B85<>"",INDEX($B$4:$B$110,MATCH(0,COUNTIF($F$3:F84,$B$4:$B$110),0)),""),"") ->  | G85: =IF(F85="","",SUMPRODUCT(--($B$4:$B$110=F85),$D$4:$D$110)) ->  | H85: =IFERROR(IF(C85<>"",INDEX($C$4:$C$110,MATCH(0,COUNTIF($H$3:H84,$C$4:$C$110),0)),""),"") ->  | I85: =IF(H85="","",SUMPRODUCT(--($C$4:$C$110=H85),$E$4:$E$110)) -> 
A86: 83 | D86: =COUNTIF(Parts!$G$5:$G$200, Wheels!B86) -> 0 | E86: =COUNTIF(Parts!$F$5:$F$200, Wheels!C86) -> 0 | F86: =IFERROR(IF(B86<>"",INDEX($B$4:$B$110,MATCH(0,COUNTIF($F$3:F85,$B$4:$B$110),0)),""),"") ->  | G86: =IF(F86="","",SUMPRODUCT(--($B$4:$B$110=F86),$D$4:$D$110)) ->  | H86: =IFERROR(IF(C86<>"",INDEX($C$4:$C$110,MATCH(0,COUNTIF($H$3:H85,$C$4:$C$110),0)),""),"") ->  | I86: =IF(H86="","",SUMPRODUCT(--($C$4:$C$110=H86),$E$4:$E$110)) -> 
A87: 84 | D87: =COUNTIF(Parts!$G$5:$G$200, Wheels!B87) -> 0 | E87: =COUNTIF(Parts!$F$5:$F$200, Wheels!C87) -> 0 | F87: =IFERROR(IF(B87<>"",INDEX($B$4:$B$110,MATCH(0,COUNTIF($F$3:F86,$B$4:$B$110),0)),""),"") ->  | G87: =IF(F87="","",SUMPRODUCT(--($B$4:$B$110=F87),$D$4:$D$110)) ->  | H87: =IFERROR(IF(C87<>"",INDEX($C$4:$C$110,MATCH(0,COUNTIF($H$3:H86,$C$4:$C$110),0)),""),"") ->  | I87: =IF(H87="","",SUMPRODUCT(--($C$4:$C$110=H87),$E$4:$E$110)) -> 
A88: 85 | D88: =COUNTIF(Parts!$G$5:$G$200, Wheels!B88) -> 0 | E88: =COUNTIF(Parts!$F$5:$F$200, Wheels!C88) -> 0 | F88: =IFERROR(IF(B88<>"",INDEX($B$4:$B$110,MATCH(0,COUNTIF($F$3:F87,$B$4:$B$110),0)),""),"") ->  | G88: =IF(F88="","",SUMPRODUCT(--($B$4:$B$110=F88),$D$4:$D$110)) ->  | H88: =IFERROR(IF(C88<>"",INDEX($C$4:$C$110,MATCH(0,COUNTIF($H$3:H87,$C$4:$C$110),0)),""),"") ->  | I88: =IF(H88="","",SUMPRODUCT(--($C$4:$C$110=H88),$E$4:$E$110)) -> 
A89: 86 | D89: =COUNTIF(Parts!$G$5:$G$200, Wheels!B89) -> 0 | E89: =COUNTIF(Parts!$F$5:$F$200, Wheels!C89) -> 0 | F89: =IFERROR(IF(B89<>"",INDEX($B$4:$B$110,MATCH(0,COUNTIF($F$3:F88,$B$4:$B$110),0)),""),"") ->  | G89: =IF(F89="","",SUMPRODUCT(--($B$4:$B$110=F89),$D$4:$D$110)) ->  | H89: =IFERROR(IF(C89<>"",INDEX($C$4:$C$110,MATCH(0,COUNTIF($H$3:H88,$C$4:$C$110),0)),""),"") ->  | I89: =IF(H89="","",SUMPRODUCT(--($C$4:$C$110=H89),$E$4:$E$110)) -> 
A90: 87 | D90: =COUNTIF(Parts!$G$5:$G$200, Wheels!B90) -> 0 | E90: =COUNTIF(Parts!$F$5:$F$200, Wheels!C90) -> 0 | F90: =IFERROR(IF(B90<>"",INDEX($B$4:$B$110,MATCH(0,COUNTIF($F$3:F89,$B$4:$B$110),0)),""),"") ->  | G90: =IF(F90="","",SUMPRODUCT(--($B$4:$B$110=F90),$D$4:$D$110)) ->  | H90: =IFERROR(IF(C90<>"",INDEX($C$4:$C$110,MATCH(0,COUNTIF($H$3:H89,$C$4:$C$110),0)),""),"") ->  | I90: =IF(H90="","",SUMPRODUCT(--($C$4:$C$110=H90),$E$4:$E$110)) -> 
A91: 88 | D91: =COUNTIF(Parts!$G$5:$G$200, Wheels!B91) -> 0 | E91: =COUNTIF(Parts!$F$5:$F$200, Wheels!C91) -> 0 | F91: =IFERROR(IF(B91<>"",INDEX($B$4:$B$110,MATCH(0,COUNTIF($F$3:F90,$B$4:$B$110),0)),""),"") ->  | G91: =IF(F91="","",SUMPRODUCT(--($B$4:$B$110=F91),$D$4:$D$110)) ->  | H91: =IFERROR(IF(C91<>"",INDEX($C$4:$C$110,MATCH(0,COUNTIF($H$3:H90,$C$4:$C$110),0)),""),"") ->  | I91: =IF(H91="","",SUMPRODUCT(--($C$4:$C$110=H91),$E$4:$E$110)) -> 
A92: 89 | D92: =COUNTIF(Parts!$G$5:$G$200, Wheels!B92) -> 0 | E92: =COUNTIF(Parts!$F$5:$F$200, Wheels!C92) -> 0 | F92: =IFERROR(IF(B92<>"",INDEX($B$4:$B$110,MATCH(0,COUNTIF($F$3:F91,$B$4:$B$110),0)),""),"") ->  | G92: =IF(F92="","",SUMPRODUCT(--($B$4:$B$110=F92),$D$4:$D$110)) ->  | H92: =IFERROR(IF(C92<>"",INDEX($C$4:$C$110,MATCH(0,COUNTIF($H$3:H91,$C$4:$C$110),0)),""),"") ->  | I92: =IF(H92="","",SUMPRODUCT(--($C$4:$C$110=H92),$E$4:$E$110)) -> 
A93: 90 | D93: =COUNTIF(Parts!$G$5:$G$200, Wheels!B93) -> 0 | E93: =COUNTIF(Parts!$F$5:$F$200, Wheels!C93) -> 0 | F93: =IFERROR(IF(B93<>"",INDEX($B$4:$B$110,MATCH(0,COUNTIF($F$3:F92,$B$4:$B$110),0)),""),"") ->  | G93: =IF(F93="","",SUMPRODUCT(--($B$4:$B$110=F93),$D$4:$D$110)) ->  | H93: =IFERROR(IF(C93<>"",INDEX($C$4:$C$110,MATCH(0,COUNTIF($H$3:H92,$C$4:$C$110),0)),""),"") ->  | I93: =IF(H93="","",SUMPRODUCT(--($C$4:$C$110=H93),$E$4:$E$110)) -> 
A94: 91 | D94: =COUNTIF(Parts!$G$5:$G$200, Wheels!B94) -> 0 | E94: =COUNTIF(Parts!$F$5:$F$200, Wheels!C94) -> 0 | F94: =IFERROR(IF(B94<>"",INDEX($B$4:$B$110,MATCH(0,COUNTIF($F$3:F93,$B$4:$B$110),0)),""),"") ->  | G94: =IF(F94="","",SUMPRODUCT(--($B$4:$B$110=F94),$D$4:$D$110)) ->  | H94: =IFERROR(IF(C94<>"",INDEX($C$4:$C$110,MATCH(0,COUNTIF($H$3:H93,$C$4:$C$110),0)),""),"") ->  | I94: =IF(H94="","",SUMPRODUCT(--($C$4:$C$110=H94),$E$4:$E$110)) -> 
A95: 92 | D95: =COUNTIF(Parts!$G$5:$G$200, Wheels!B95) -> 0 | E95: =COUNTIF(Parts!$F$5:$F$200, Wheels!C95) -> 0 | F95: =IFERROR(IF(B95<>"",INDEX($B$4:$B$110,MATCH(0,COUNTIF($F$3:F94,$B$4:$B$110),0)),""),"") ->  | G95: =IF(F95="","",SUMPRODUCT(--($B$4:$B$110=F95),$D$4:$D$110)) ->  | H95: =IFERROR(IF(C95<>"",INDEX($C$4:$C$110,MATCH(0,COUNTIF($H$3:H94,$C$4:$C$110),0)),""),"") ->  | I95: =IF(H95="","",SUMPRODUCT(--($C$4:$C$110=H95),$E$4:$E$110)) -> 
A96: 93 | D96: =COUNTIF(Parts!$G$5:$G$200, Wheels!B96) -> 0 | E96: =COUNTIF(Parts!$F$5:$F$200, Wheels!C96) -> 0 | F96: =IFERROR(IF(B96<>"",INDEX($B$4:$B$110,MATCH(0,COUNTIF($F$3:F95,$B$4:$B$110),0)),""),"") ->  | G96: =IF(F96="","",SUMPRODUCT(--($B$4:$B$110=F96),$D$4:$D$110)) ->  | H96: =IFERROR(IF(C96<>"",INDEX($C$4:$C$110,MATCH(0,COUNTIF($H$3:H95,$C$4:$C$110),0)),""),"") ->  | I96: =IF(H96="","",SUMPRODUCT(--($C$4:$C$110=H96),$E$4:$E$110)) -> 
A97: 94 | D97: =COUNTIF(Parts!$G$5:$G$200, Wheels!B97) -> 0 | E97: =COUNTIF(Parts!$F$5:$F$200, Wheels!C97) -> 0 | F97: =IFERROR(IF(B97<>"",INDEX($B$4:$B$110,MATCH(0,COUNTIF($F$3:F96,$B$4:$B$110),0)),""),"") ->  | G97: =IF(F97="","",SUMPRODUCT(--($B$4:$B$110=F97),$D$4:$D$110)) ->  | H97: =IFERROR(IF(C97<>"",INDEX($C$4:$C$110,MATCH(0,COUNTIF($H$3:H96,$C$4:$C$110),0)),""),"") ->  | I97: =IF(H97="","",SUMPRODUCT(--($C$4:$C$110=H97),$E$4:$E$110)) -> 
A98: 95 | D98: =COUNTIF(Parts!$G$5:$G$200, Wheels!B98) -> 0 | E98: =COUNTIF(Parts!$F$5:$F$200, Wheels!C98) -> 0 | F98: =IFERROR(IF(B98<>"",INDEX($B$4:$B$110,MATCH(0,COUNTIF($F$3:F97,$B$4:$B$110),0)),""),"") ->  | G98: =IF(F98="","",SUMPRODUCT(--($B$4:$B$110=F98),$D$4:$D$110)) ->  | H98: =IFERROR(IF(C98<>"",INDEX($C$4:$C$110,MATCH(0,COUNTIF($H$3:H97,$C$4:$C$110),0)),""),"") ->  | I98: =IF(H98="","",SUMPRODUCT(--($C$4:$C$110=H98),$E$4:$E$110)) -> 
A99: 96 | D99: =COUNTIF(Parts!$G$5:$G$200, Wheels!B99) -> 0 | E99: =COUNTIF(Parts!$F$5:$F$200, Wheels!C99) -> 0 | F99: =IFERROR(IF(B99<>"",INDEX($B$4:$B$110,MATCH(0,COUNTIF($F$3:F98,$B$4:$B$110),0)),""),"") ->  | G99: =IF(F99="","",SUMPRODUCT(--($B$4:$B$110=F99),$D$4:$D$110)) ->  | H99: =IFERROR(IF(C99<>"",INDEX($C$4:$C$110,MATCH(0,COUNTIF($H$3:H98,$C$4:$C$110),0)),""),"") ->  | I99: =IF(H99="","",SUMPRODUCT(--($C$4:$C$110=H99),$E$4:$E$110)) -> 
A100: 97 | D100: =COUNTIF(Parts!$G$5:$G$200, Wheels!B100) -> 0 | E100: =COUNTIF(Parts!$F$5:$F$200, Wheels!C100) -> 0 | F100: =IFERROR(IF(B100<>"",INDEX($B$4:$B$110,MATCH(0,COUNTIF($F$3:F99,$B$4:$B$110),0)),""),"") ->  | G100: =IF(F100="","",SUMPRODUCT(--($B$4:$B$110=F100),$D$4:$D$110)) ->  | H100: =IFERROR(IF(C100<>"",INDEX($C$4:$C$110,MATCH(0,COUNTIF($H$3:H99,$C$4:$C$110),0)),""),"") ->  | I100: =IF(H100="","",SUMPRODUCT(--($C$4:$C$110=H100),$E$4:$E$110)) -> 
A101: 98 | D101: =COUNTIF(Parts!$G$5:$G$200, Wheels!B101) -> 0 | E101: =COUNTIF(Parts!$F$5:$F$200, Wheels!C101) -> 0 | F101: =IFERROR(IF(B101<>"",INDEX($B$4:$B$110,MATCH(0,COUNTIF($F$3:F100,$B$4:$B$110),0)),""),"") ->  | G101: =IF(F101="","",SUMPRODUCT(--($B$4:$B$110=F101),$D$4:$D$110)) ->  | H101: =IFERROR(IF(C101<>"",INDEX($C$4:$C$110,MATCH(0,COUNTIF($H$3:H100,$C$4:$C$110),0)),""),"") ->  | I101: =IF(H101="","",SUMPRODUCT(--($C$4:$C$110=H101),$E$4:$E$110)) -> 
A102: 99 | D102: =COUNTIF(Parts!$G$5:$G$200, Wheels!B102) -> 0 | E102: =COUNTIF(Parts!$F$5:$F$200, Wheels!C102) -> 0 | F102: =IFERROR(IF(B102<>"",INDEX($B$4:$B$110,MATCH(0,COUNTIF($F$3:F101,$B$4:$B$110),0)),""),"") ->  | G102: =IF(F102="","",SUMPRODUCT(--($B$4:$B$110=F102),$D$4:$D$110)) ->  | H102: =IFERROR(IF(C102<>"",INDEX($C$4:$C$110,MATCH(0,COUNTIF($H$3:H101,$C$4:$C$110),0)),""),"") ->  | I102: =IF(H102="","",SUMPRODUCT(--($C$4:$C$110=H102),$E$4:$E$110)) -> 
A103: 100 | D103: =COUNTIF(Parts!$G$5:$G$200, Wheels!B103) -> 0 | E103: =COUNTIF(Parts!$F$5:$F$200, Wheels!C103) -> 0 | F103: =IFERROR(IF(B103<>"",INDEX($B$4:$B$110,MATCH(0,COUNTIF($F$3:F102,$B$4:$B$110),0)),""),"") ->  | G103: =IF(F103="","",SUMPRODUCT(--($B$4:$B$110=F103),$D$4:$D$110)) ->  | H103: =IFERROR(IF(C103<>"",INDEX($C$4:$C$110,MATCH(0,COUNTIF($H$3:H102,$C$4:$C$110),0)),""),"") ->  | I103: =IF(H103="","",SUMPRODUCT(--($C$4:$C$110=H103),$E$4:$E$110)) -> 

Sheet Parts
E2: Aircraft Replacements Follow up
A4: Item | B4: ATA | C4: Description | D4: P/N Removed | E4: S/N Removed | F4: P/N Installed | G4: S/N Installed | H4: Date | I4: T.L.B | J4: A/C TH
A5: 1 | B5: 32 | C5: NOSE WHEEL #1 | D5: 3-1531-3 | E5: A9197 | F5: C20195162 | G5: 45253 | H5: 2022-08-21 | I5: 000249 | J5: =IFERROR(VLOOKUP(I5,'[2]AC TLB'!$A$7:$E$1199,5,1),"") -> 1276.770139
A6: 2 | B6: 32 | C6: NOSE WHEEL #1 | D6: 3-1531-3 | E6: 6686 | F6: C20195162 | G6: 43059 | H6: 2022-08-22 | I6: 000252 | J6: =IFERROR(VLOOKUP(I6,'[2]AC TLB'!$A$7:$E$1199,5,1),"") -> 1277.183333
A7: 3 | B7: 32 | C7: NOSE WHEEL #2 | D7: 3-1531-3 | E7: A8538 | F7: C20195162 | G7: 43078 | H7: 2022-08-22 | I7: 000252 | J7: =IFERROR(VLOOKUP(I7,'[2]AC TLB'!$A$7:$E$1199,5,1),"") -> 1277.183333
A8: 4 | B8: 33 | C8: LOGO LT R.H.S | D8: GE4626 | E8: N/A | F8: C20195162 | G8: 55385 | H8: 2022-08-23 | I8: 000263 | J8: =IFERROR(VLOOKUP(I8,'[2]AC TLB'!$A$7:$E$1199,5,1),"") -> 1278.207639
A9: 5 | B9: 33 | C9: TAKE OFF LT | D9: GE4626 | E9: N/A | F9: C20195162 | G9: 28787 | H9: 2022-08-24 | I9: 000264 | J9: =IFERROR(VLOOKUP(I9,'[2]AC TLB'!$A$7:$E$1199,5,1),"") -> 1278.207639
A10: 6 | B10: 33 | C10: TURN OFF LAMP L.H.S | D10: GE4626 | E10: N/A | F10: C20195162 | G10: 44998 | H10: 2022-08-24 | I10: 000264 | J10: =IFERROR(VLOOKUP(I10,'[2]AC TLB'!$A$7:$E$1199,5,1),"") -> 1278.207639
A11: 7 | B11: 31 | C11: DMC #3 | D11: 1982660116 | E11: 198266013271 | F11: C20195162 | G11: 32381 | H11: 2022-08-24 | I11: 000270 | J11: =IFERROR(VLOOKUP(I11,'[2]AC TLB'!$A$7:$E$1199,5,1),"") -> 1278.608333
A12: 8 | B12: 32 | C12: MAIN WHEEL #4 | D12: C20195162 | E12: 43050 | F12: C20195162 | G12: 27448 | H12: 2022-08-24 | I12: 000270 | J12: =IFERROR(VLOOKUP(I12,'[2]AC TLB'!$A$7:$E$1199,5,1),"") -> 1278.608333
A13: 9 | B13: 32 | C13: MAIN WHEEL #2 | D13: C20195162 | E13: 43078 | F13: C20195162 | G13: 49303 | H13: 2022-09-02 | I13: 000316 | J13: =IFERROR(VLOOKUP(I13,'[2]AC TLB'!$A$7:$E$1199,5,1),"") -> 1283.181944
A14: 10 | B14: 33 | C14: LANDING LT R.H.S | D14: Q1559X | E14: N/A | F14: C20195162 | G14: 55386 | H14: 2022-09-03 | I14: 000321 | J14: =IFERROR(VLOOKUP(I14,'[2]AC TLB'!$A$7:$E$1199,5,1),"") -> 1283.573611
A15: 11 | B15: 32 | C15: NOSE WHEEL #2 | D15: 3-1531-3 | E15: 6905 | F15: C20195162 | G15: 43239 | H15: 2022-09-14 | I15: 000383 | J15: =IFERROR(VLOOKUP(I15,'[2]AC TLB'!$A$7:$E$1199,5,1),"") -> 1288.815278
A16: 12 | B16: 21 | C16: RECI FAN | D16: VD3900-003 | E16: 32012 | F16: C20195162 | G16: 43236 | H16: 2022-09-15 | I16: 000392 | J16: =IFERROR(VLOOKUP(I16,'[2]AC TLB'!$A$7:$E$1199,5,1),"") -> 1289.473611
A17: 13 | B17: 32 | C17: FLGX HOSE ASSY. | D17: AE718529-2 | E17: N/A | F17: C20195162 | G17: 43509 | H17: 2022-09-19 | I17: 000405 | J17: =IFERROR(VLOOKUP(I17,'[2]AC TLB'!$A$7:$E$1199,5,1),"") -> 1290.677083
A18: 14 | B18: 28 | C18: FUEL PUMP CENTER TANK #1 | D18: 568-1-27202-007 | E18: 8211 | F18: C20195162 | G18: 46961 | H18: 2022-09-21 | I18: 000413 | J18: =IFERROR(VLOOKUP(I18,'[2]AC TLB'!$A$7:$E$1199,5,1),"") -> 1291.402083
A19: 15 | B19: 32 | C19: NOSE WHEEL #2 | D19: 3-1531-3 | E19: 7091 | F19: C20195162 | G19: 48901 | H19: 2022-09-21 | I19: 000416 | J19: =IFERROR(VLOOKUP(I19,'[2]AC TLB'!$A$7:$E$1199,5,1),"") -> 1291.565972
A20: 16 | B20: 28 | C20: FLSCU #2 | D20: 30042-0601 | E20: 1294 | F20: 3-1531-3 | G20: A9197 | H20: 2022-09-24 | I20: 000424 | J20: =IFERROR(VLOOKUP(I20,'[2]AC TLB'!$A$7:$E$1199,5,1),"") -> 1292.359722
A21: 17 | B21: 32 | C21: MAIN WHEEL #1 | D21: C20195162 | E21: 432239 | F21: 3-1531-3 | G21: A9195 | H21: 2022-09-25 | I21: 000429 | J21: =IFERROR(VLOOKUP(I21,'[2]AC TLB'!$A$7:$E$1199,5,1),"") -> 1293.138889
A22: 18 | B22: 32 | C22: MAIN WHEEL #3 | D22: C20195162 | E22: 43236 | F22: 3-1531-3 | G22: 6905 | H22: 2022-09-25 | I22: 000429 | J22: =IFERROR(VLOOKUP(I22,'[2]AC TLB'!$A$7:$E$1199,5,1),"") -> 1293.138889
A23: 19 | C23: MAIN WHEEL #3 | D23: C20195162 | E23: 43236 | F23: 3-1531-3 | G23: 5426 | H23: 2022-09-25 | I23: 000430 | J23: =IFERROR(VLOOKUP(I23,'[2]AC TLB'!$A$7:$E$1199,5,1),"") -> 1293.216667
A24: 20 | C24: MAIN WHEEL #1 | D24: 3-1531-3 | E24: 432239 | F24: 3-1531-3 | G24: A6656 | J24: =IFERROR(VLOOKUP(I24,'[2]AC TLB'!$A$7:$E$1199,5,1),"") -> 
A25: 21 | C25: MAIN WHEEL #1 | D25: C20195162 | E25: 432239 | F25: 3-1531-3 | G25: A7028 | J25: =IFERROR(VLOOKUP(I25,'[2]AC TLB'!$A$7:$E$1199,5,1),"") -> 
A26: 22 | C26: MAIN WHEEL #3 | D26: C20195162 | E26: 43236 | F26: 3-1531-3 | G26: A6241 | J26: =IFERROR(VLOOKUP(I26,'[2]AC TLB'!$A$7:$E$1199,5,1),"") -> 
A27: 23 | C27: MAIN WHEEL #4 | D27: C20195162 | E27: 43050 | F27: 3-1531-3 | G27: A2693 | J27: =IFERROR(VLOOKUP(I27,'[2]AC TLB'!$A$7:$E$1199,5,1),"") -> 
A28: 24 | C28: MAIN WHEEL #2 | D28: C20195162 | E28: 43078 | F28: 3-1531-3 | G28: 4459 | J28: =IFERROR(VLOOKUP(I28,'[2]AC TLB'!$A$7:$E$1199,5,1),"") -> 
A29: 25 | C29: MAIN WHEEL #3 | D29: C20195162 | E29: 43236 | F29: 3-1531-3 | G29: 0086 | J29: =IFERROR(VLOOKUP(I29,'[2]AC TLB'!$A$7:$E$1199,5,1),"") -> 
A30: 26 | C30: MAIN WHEEL #1 | D30: 3-1531-3 | E30: 432239 | F30: 3-1531-3 | G30: 6901 | J30: =IFERROR(VLOOKUP(I30,'[2]AC TLB'!$A$7:$E$1199,5,1),"") -> 
A31: 27 | C31: MAIN WHEEL #4 | D31: C20195162 | E31: 43050 | F31: 3-1531-3 | G31: 0389 | J31: =IFERROR(VLOOKUP(I31,'[2]AC TLB'!$A$7:$E$1199,5,1),"") -> 
A32: 28 | C32: MAIN WHEEL #2 | D32: C20195162 | E32: 43078 | F32: 3-1531-3 | G32: 3023 | J32: =IFERROR(VLOOKUP(I32,'[2]AC TLB'!$A$7:$E$1199,5,1),"") -> 
A33: 29 | C33: MAIN WHEEL #3 | D33: C20195162 | E33: 43236 | F33: 3-1531-3 | G33: 8538 | J33: =IFERROR(VLOOKUP(I33,'[2]AC TLB'!$A$7:$E$1199,5,1),"") -> 
A34: 30 | C34: MAIN WHEEL #1 | D34: 3-1531-3 | E34: 432239 | F34: 3-1531-3 | G34: A4793 | J34: =IFERROR(VLOOKUP(I34,'[2]AC TLB'!$A$7:$E$1199,5,1),"") -> 
A35: 31 | C35: MAIN WHEEL #1 | D35: 3-1531-3 | E35: 432239 | F35: 3-1531-3 | G35: 7091 | J35: =IFERROR(VLOOKUP(I35,'[2]AC TLB'!$A$7:$E$1199,5,1),"") -> 
A36: 32 | C36: MAIN WHEEL #1 | D36: 3-1531-3 | E36: 432239 | F36: 3-1531-3 | G36: 9424 | J36: =IFERROR(VLOOKUP(I36,'[2]AC TLB'!$A$7:$E$1199,5,1),"") -> 
A37: 33 | C37: MAIN WHEEL #4 | D37: C20195162 | E37: 43050 | F37: 3-1531-4 | G37: 500 | J37: =IFERROR(VLOOKUP(I37,'[2]AC TLB'!$A$7:$E$1199,5,1),"") -> 
A38: 34 | C38: MAIN WHEEL #2 | D38: C20195162 | E38: 43078 | F38: 3-1531-5 | G38: 900 | J38: =IFERROR(VLOOKUP(I38,'[2]AC TLB'!$A$7:$E$1199,5,1),"") -> 
A39: 35 | G39: 5200 | J39: =IFERROR(VLOOKUP(I39,'[2]AC TLB'!$A$7:$E$1199,5,1),"") -> 
A40: 36 | J40: =IFERROR(VLOOKUP(I40,'[2]AC TLB'!$A$7:$E$1199,5,1),"") -> 
A41: 37 | J41: =IFERROR(VLOOKUP(I41,'[2]AC TLB'!$A$7:$E$1199,5,1),"") -> 
A42: 38 | J42: =IFERROR(VLOOKUP(I42,'[2]AC TLB'!$A$7:$E$1199,5,1),"") -> 
A43: 39 | J43: =IFERROR(VLOOKUP(I43,'[2]AC TLB'!$A$7:$E$1199,5,1),"") -> 
A44: 40 | J44: =IFERROR(VLOOKUP(I44,'[2]AC TLB'!$A$7:$E$1199,5,1),"") -> 
A45: 41 | J45: =IFERROR(VLOOKUP(I45,'[2]AC TLB'!$A$7:$E$1199,5,1),"") -> 
A46: 42 | J46: =IFERROR(VLOOKUP(I46,'[2]AC TLB'!$A$7:$E$1199,5,1),"") -> 
A47: 43 | J47: =IFERROR(VLOOKUP(I47,'[2]AC TLB'!$A$7:$E$1199,5,1),"") -> 
A48: 44 | J48: =IFERROR(VLOOKUP(I48,'[2]AC TLB'!$A$7:$E$1199,5,1),"") -> 
A49: 45 | J49: =IFERROR(VLOOKUP(I49,'[2]AC TLB'!$A$7:$E$1199,5,1),"") -> 
A50: 46 | J50: =IFERROR(VLOOKUP(I50,'[2]AC TLB'!$A$7:$E$1199,5,1),"") -> 
A51: 47 | J51: =IFERROR(VLOOKUP(I51,'[2]AC TLB'!$A$7:$E$1199,5,1),"") -> 
A52: 48 | J52: =IFERROR(VLOOKUP(I52,'[2]AC TLB'!$A$7:$E$1199,5,1),"") -> 
A53: 49 | J53: =IFERROR(VLOOKUP(I53,'[2]AC TLB'!$A$7:$E$1199,5,1),"") -> 
A54: 50 | J54: =IFERROR(VLOOKUP(I54,'[2]AC TLB'!$A$7:$E$1199,5,1),"") -> 
A55: 51 | J55: =IFERROR(VLOOKUP(I55,'[2]AC TLB'!$A$7:$E$1199,5,1),"") -> 
A56: 52 | J56: =IFERROR(VLOOKUP(I56,'[2]AC TLB'!$A$7:$E$1199,5,1),"") -> 
A57: 53 | J57: =IFERROR(VLOOKUP(I57,'[2]AC TLB'!$A$7:$E$1199,5,1),"") -> 
A58: 54 | J58: =IFERROR(VLOOKUP(I58,'[2]AC TLB'!$A$7:$E$1199,5,1),"") -> 
A59: 55 | J59: =IFERROR(VLOOKUP(I59,'[2]AC TLB'!$A$7:$E$1199,5,1),"") -> 
A60: 56 | J60: =IFERROR(VLOOKUP(I60,'[2]AC TLB'!$A$7:$E$1199,5,1),"") -> 
A61: 57 | J61: =IFERROR(VLOOKUP(I61,'[2]AC TLB'!$A$7:$E$1199,5,1),"") -> 
A62: 58 | J62: =IFERROR(VLOOKUP(I62,'[2]AC TLB'!$A$7:$E$1199,5,1),"") -> 
A63: 59 | J63: =IFERROR(VLOOKUP(I63,'[2]AC TLB'!$A$7:$E$1199,5,1),"") -> 
A64: 60 | J64: =IFERROR(VLOOKUP(I64,'[2]AC TLB'!$A$7:$E$1199,5,1),"") -> 
A65: 61 | J65: =IFERROR(VLOOKUP(I65,'[2]AC TLB'!$A$7:$E$1199,5,1),"") -> 
A66: 62 | J66: =IFERROR(VLOOKUP(I66,'[2]AC TLB'!$A$7:$E$1199,5,1),"") -> 
A67: 63 | J67: =IFERROR(VLOOKUP(I67,'[2]AC TLB'!$A$7:$E$1199,5,1),"") -> 
A68: 64 | J68: =IFERROR(VLOOKUP(I68,'[2]AC TLB'!$A$7:$E$1199,5,1),"") -> 
A69: 65 | J69: =IFERROR(VLOOKUP(I69,'[2]AC TLB'!$A$7:$E$1199,5,1),"") -> 
A70: 66 | J70: =IFERROR(VLOOKUP(I70,'[2]AC TLB'!$A$7:$E$1199,5,1),"") -> 
A71: 67 | J71: =IFERROR(VLOOKUP(I71,'[2]AC TLB'!$A$7:$E$1199,5,1),"") -> 
A72: 68 | J72: =IFERROR(VLOOKUP(I72,'[2]AC TLB'!$A$7:$E$1199,5,1),"") -> 
A73: 69 | J73: =IFERROR(VLOOKUP(I73,'[2]AC TLB'!$A$7:$E$1199,5,1),"") -> 
A74: 70 | J74: =IFERROR(VLOOKUP(I74,'[2]AC TLB'!$A$7:$E$1199,5,1),"") -> 
A75: 71 | J75: =IFERROR(VLOOKUP(I75,'[2]AC TLB'!$A$7:$E$1199,5,1),"") -> 
A76: 72 | J76: =IFERROR(VLOOKUP(I76,'[2]AC TLB'!$A$7:$E$1199,5,1),"") -> 
A77: 73 | J77: =IFERROR(VLOOKUP(I77,'[2]AC TLB'!$A$7:$E$1199,5,1),"") -> 
A78: 74 | J78: =IFERROR(VLOOKUP(I78,'[2]AC TLB'!$A$7:$E$1199,5,1),"") -> 
A79: 75 | J79: =IFERROR(VLOOKUP(I79,'[2]AC TLB'!$A$7:$E$1199,5,1),"") -> 
A80: 76 | J80: =IFERROR(VLOOKUP(I80,'[2]AC TLB'!$A$7:$E$1199,5,1),"") -> 
A81: 77 | J81: =IFERROR(VLOOKUP(I81,'[2]AC TLB'!$A$7:$E$1199,5,1),"") -> 
A82: 78 | J82: =IFERROR(VLOOKUP(I82,'[2]AC TLB'!$A$7:$E$1199,5,1),"") -> 
A83: 79 | J83: =IFERROR(VLOOKUP(I83,'[2]AC TLB'!$A$7:$E$1199,5,1),"") -> 
A84: 80 | J84: =IFERROR(VLOOKUP(I84,'[2]AC TLB'!$A$7:$E$1199,5,1),"") -> 
A85: 81 | J85: =IFERROR(VLOOKUP(I85,'[2]AC TLB'!$A$7:$E$1199,5,1),"") -> 
A86: 82 | J86: =IFERROR(VLOOKUP(I86,'[2]AC TLB'!$A$7:$E$1199,5,1),"") -> 
A87: 83 | J87: =IFERROR(VLOOKUP(I87,'[2]AC TLB'!$A$7:$E$1199,5,1),"") -> 
A88: 84 | J88: =IFERROR(VLOOKUP(I88,'[2]AC TLB'!$A$7:$E$1199,5,1),"") -> 
A89: 85 | J89: =IFERROR(VLOOKUP(I89,'[2]AC TLB'!$A$7:$E$1199,5,1),"") -> 
A90: 86 | J90: =IFERROR(VLOOKUP(I90,'[2]AC TLB'!$A$7:$E$1199,5,1),"") -> 
A91: 87 | J91: =IFERROR(VLOOKUP(I91,'[2]AC TLB'!$A$7:$E$1199,5,1),"") -> 
A92: 88 | J92: =IFERROR(VLOOKUP(I92,'[2]AC TLB'!$A$7:$E$1199,5,1),"") -> 
A93: 89 | J93: =IFERROR(VLOOKUP(I93,'[2]AC TLB'!$A$7:$E$1199,5,1),"") -> 
A94: 90 | J94: =IFERROR(VLOOKUP(I94,'[2]AC TLB'!$A$7:$E$1199,5,1),"") -> 
A95: 91 | J95: =IFERROR(VLOOKUP(I95,'[2]AC TLB'!$A$7:$E$1199,5,1),"") -> 
A96: 92 | J96: =IFERROR(VLOOKUP(I96,'[2]AC TLB'!$A$7:$E$1199,5,1),"") -> 
A97: 93 | J97: =IFERROR(VLOOKUP(I97,'[2]AC TLB'!$A$7:$E$1199,5,1),"") -> 
A98: 94 | J98: =IFERROR(VLOOKUP(I98,'[2]AC TLB'!$A$7:$E$1199,5,1),"") -> 
A99: 95 | J99: =IFERROR(VLOOKUP(I99,'[2]AC TLB'!$A$7:$E$1199,5,1),"") -> 
A100: 96 | J100: =IFERROR(VLOOKUP(I100,'[2]AC TLB'!$A$7:$E$1199,5,1),"") -> 
A101: 97 | J101: =IFERROR(VLOOKUP(I101,'[2]AC TLB'!$A$7:$E$1199,5,1),"") -> 
A102: 98 | J102: =IFERROR(VLOOKUP(I102,'[2]AC TLB'!$A$7:$E$1199,5,1),"") -> 
A103: 99 | J103: =IFERROR(VLOOKUP(I103,'[2]AC TLB'!$A$7:$E$1199,5,1),"") -> 
A104: 100 | J104: =IFERROR(VLOOKUP(I104,'[2]AC TLB'!$A$7:$E$1199,5,1),"") -> 
A105: 101 | J105: =IFERROR(VLOOKUP(I105,'[2]AC TLB'!$A$7:$E$1199,5,1),"") -> 
A106: 102 | J106: =IFERROR(VLOOKUP(I106,'[2]AC TLB'!$A$7:$E$1199,5,1),"") -> 
A107: 103 | J107: =IFERROR(VLOOKUP(I107,'[2]AC TLB'!$A$7:$E$1199,5,1),"") -> 
A108: 104 | J108: =IFERROR(VLOOKUP(I108,'[2]AC TLB'!$A$7:$E$1199,5,1),"") -> 
A109: 105 | J109: =IFERROR(VLOOKUP(I109,'[2]AC TLB'!$A$7:$E$1199,5,1),"") -> 
A110: 106 | J110: =IFERROR(VLOOKUP(I110,'[2]AC TLB'!$A$7:$E$1199,5,1),"") -> 
A111: 107 | J111: =IFERROR(VLOOKUP(I111,'[2]AC TLB'!$A$7:$E$1199,5,1),"") -> 
A112: 108 | J112: =IFERROR(VLOOKUP(I112,'[2]AC TLB'!$A$7:$E$1199,5,1),"") -> 
A113: 109 | J113: =IFERROR(VLOOKUP(I113,'[2]AC TLB'!$A$7:$E$1199,5,1),"") -> 
A114: 110 | J114: =IFERROR(VLOOKUP(I114,'[2]AC TLB'!$A$7:$E$1199,5,1),"") -> 
A115: 111 | J115: =IFERROR(VLOOKUP(I115,'[2]AC TLB'!$A$7:$E$1199,5,1),"") -> 
A116: 112 | J116: =IFERROR(VLOOKUP(I116,'[2]AC TLB'!$A$7:$E$1199,5,1),"") -> 
A117: 113 | J117: =IFERROR(VLOOKUP(I117,'[2]AC TLB'!$A$7:$E$1199,5,1),"") -> 
A118: 114 | J118: =IFERROR(VLOOKUP(I118,'[2]AC TLB'!$A$7:$E$1199,5,1),"") -> 
A119: 115 | J119: =IFERROR(VLOOKUP(I119,'[2]AC TLB'!$A$7:$E$1199,5,1),"") -> 
A120: 116 | J120: =IFERROR(VLOOKUP(I120,'[2]AC TLB'!$A$7:$E$1199,5,1),"") -> 
A121: 117 | J121: =IFERROR(VLOOKUP(I121,'[2]AC TLB'!$A$7:$E$1199,5,1),"") -> 
A122: 118 | J122: =IFERROR(VLOOKUP(I122,'[2]AC TLB'!$A$7:$E$1199,5,1),"") -> 
A123: 119 | J123: =IFERROR(VLOOKUP(I123,'[2]AC TLB'!$A$7:$E$1199,5,1),"") -> 
A124: 120 | J124: =IFERROR(VLOOKUP(I124,'[2]AC TLB'!$A$7:$E$1199,5,1),"") -> 
A125: 121 | J125: =IFERROR(VLOOKUP(I125,'[2]AC TLB'!$A$7:$E$1199,5,1),"") -> 
A126: 122 | J126: =IFERROR(VLOOKUP(I126,'[2]AC TLB'!$A$7:$E$1199,5,1),"") -> 
A127: 123 | J127: =IFERROR(VLOOKUP(I127,'[2]AC TLB'!$A$7:$E$1199,5,1),"") -> 
A128: 124 | J128: =IFERROR(VLOOKUP(I128,'[2]AC TLB'!$A$7:$E$1199,5,1),"") -> 
A129: 125 | J129: =IFERROR(VLOOKUP(I129,'[2]AC TLB'!$A$7:$E$1199,5,1),"") -> 
A130: 126 | J130: =IFERROR(VLOOKUP(I130,'[2]AC TLB'!$A$7:$E$1199,5,1),"") -> 
A131: 127 | J131: =IFERROR(VLOOKUP(I131,'[2]AC TLB'!$A$7:$E$1199,5,1),"") -> 
A132: 128 | J132: =IFERROR(VLOOKUP(I132,'[2]AC TLB'!$A$7:$E$1199,5,1),"") -> 
A133: 129 | J133: =IFERROR(VLOOKUP(I133,'[2]AC TLB'!$A$7:$E$1199,5,1),"") -> 
A134: 130 | J134: =IFERROR(VLOOKUP(I134,'[2]AC TLB'!$A$7:$E$1199,5,1),"") -> 
A135: 131 | J135: =IFERROR(VLOOKUP(I135,'[2]AC TLB'!$A$7:$E$1199,5,1),"") -> 
A136: 132 | J136: =IFERROR(VLOOKUP(I136,'[2]AC TLB'!$A$7:$E$1199,5,1),"") -> 
A137: 133 | J137: =IFERROR(VLOOKUP(I137,'[2]AC TLB'!$A$7:$E$1199,5,1),"") -> 
A138: 134 | J138: =IFERROR(VLOOKUP(I138,'[2]AC TLB'!$A$7:$E$1199,5,1),"") -> 
A139: 135 | J139: =IFERROR(VLOOKUP(I139,'[2]AC TLB'!$A$7:$E$1199,5,1),"") -> 
A140: 136 | J140: =IFERROR(VLOOKUP(I140,'[2]AC TLB'!$A$7:$E$1199,5,1),"") -> 
A141: 137 | J141: =IFERROR(VLOOKUP(I141,'[2]AC TLB'!$A$7:$E$1199,5,1),"") -> 
A142: 138 | J142: =IFERROR(VLOOKUP(I142,'[2]AC TLB'!$A$7:$E$1199,5,1),"") -> 
A143: 139 | J143: =IFERROR(VLOOKUP(I143,'[2]AC TLB'!$A$7:$E$1199,5,1),"") -> 
A144: 140 | J144: =IFERROR(VLOOKUP(I144,'[2]AC TLB'!$A$7:$E$1199,5,1),"") -> 
A145: 141 | J145: =IFERROR(VLOOKUP(I145,'[2]AC TLB'!$A$7:$E$1199,5,1),"") -> 
A146: 142 | J146: =IFERROR(VLOOKUP(I146,'[2]AC TLB'!$A$7:$E$1199,5,1),"") -> 
A147: 143 | J147: =IFERROR(VLOOKUP(I147,'[2]AC TLB'!$A$7:$E$1199,5,1),"") -> 
A148: 144 | J148: =IFERROR(VLOOKUP(I148,'[2]AC TLB'!$A$7:$E$1199,5,1),"") -> 
A149: 145 | J149: =IFERROR(VLOOKUP(I149,'[2]AC TLB'!$A$7:$E$1199,5,1),"") -> 
A150: 146 | J150: =IFERROR(VLOOKUP(I150,'[2]AC TLB'!$A$7:$E$1199,5,1),"") -> 
A151: 147 | J151: =IFERROR(VLOOKUP(I151,'[2]AC TLB'!$A$7:$E$1199,5,1),"") -> 
A152: 148 | J152: =IFERROR(VLOOKUP(I152,'[2]AC TLB'!$A$7:$E$1199,5,1),"") -> 
A153: 149 | J153: =IFERROR(VLOOKUP(I153,'[2]AC TLB'!$A$7:$E$1199,5,1),"") -> 
A154: 150 | J154: =IFERROR(VLOOKUP(I154,'[2]AC TLB'!$A$7:$E$1199,5,1),"") -> 
A155: 151 | J155: =IFERROR(VLOOKUP(I155,'[2]AC TLB'!$A$7:$E$1199,5,1),"") -> 
A156: 152 | J156: =IFERROR(VLOOKUP(I156,'[2]AC TLB'!$A$7:$E$1199,5,1),"") -> 
A157: 153 | J157: =IFERROR(VLOOKUP(I157,'[2]AC TLB'!$A$7:$E$1199,5,1),"") -> 
A158: 154 | J158: =IFERROR(VLOOKUP(I158,'[2]AC TLB'!$A$7:$E$1199,5,1),"") -> 
A159: 155 | J159: =IFERROR(VLOOKUP(I159,'[2]AC TLB'!$A$7:$E$1199,5,1),"") -> 
A160: 156 | J160: =IFERROR(VLOOKUP(I160,'[2]AC TLB'!$A$7:$E$1199,5,1),"") -> 
A161: 157 | J161: =IFERROR(VLOOKUP(I161,'[2]AC TLB'!$A$7:$E$1199,5,1),"") -> 
A162: 158 | J162: =IFERROR(VLOOKUP(I162,'[2]AC TLB'!$A$7:$E$1199,5,1),"") -> 
A163: 159 | J163: =IFERROR(VLOOKUP(I163,'[2]AC TLB'!$A$7:$E$1199,5,1),"") -> 
A164: 160 | J164: =IFERROR(VLOOKUP(I164,'[2]AC TLB'!$A$7:$E$1199,5,1),"") -> 
A165: 161 | J165: =IFERROR(VLOOKUP(I165,'[2]AC TLB'!$A$7:$E$1199,5,1),"") -> 
A166: 162 | J166: =IFERROR(VLOOKUP(I166,'[2]AC TLB'!$A$7:$E$1199,5,1),"") -> 
A167: 163 | J167: =IFERROR(VLOOKUP(I167,'[2]AC TLB'!$A$7:$E$1199,5,1),"") -> 
A168: 164 | J168: =IFERROR(VLOOKUP(I168,'[2]AC TLB'!$A$7:$E$1199,5,1),"") -> 
A169: 165 | J169: =IFERROR(VLOOKUP(I169,'[2]AC TLB'!$A$7:$E$1199,5,1),"") -> 
A170: 166 | J170: =IFERROR(VLOOKUP(I170,'[2]AC TLB'!$A$7:$E$1199,5,1),"") -> 
A171: 167 | J171: =IFERROR(VLOOKUP(I171,'[2]AC TLB'!$A$7:$E$1199,5,1),"") -> 
A172: 168 | J172: =IFERROR(VLOOKUP(I172,'[2]AC TLB'!$A$7:$E$1199,5,1),"") -> 
A173: 169 | J173: =IFERROR(VLOOKUP(I173,'[2]AC TLB'!$A$7:$E$1199,5,1),"") -> 
A174: 170 | J174: =IFERROR(VLOOKUP(I174,'[2]AC TLB'!$A$7:$E$1199,5,1),"") -> 
A175: 171 | J175: =IFERROR(VLOOKUP(I175,'[2]AC TLB'!$A$7:$E$1199,5,1),"") -> 
A176: 172 | J176: =IFERROR(VLOOKUP(I176,'[2]AC TLB'!$A$7:$E$1199,5,1),"") -> 
A177: 173 | J177: =IFERROR(VLOOKUP(I177,'[2]AC TLB'!$A$7:$E$1199,5,1),"") -> 
A178: 174 | J178: =IFERROR(VLOOKUP(I178,'[2]AC TLB'!$A$7:$E$1199,5,1),"") -> 
A179: 175 | J179: =IFERROR(VLOOKUP(I179,'[2]AC TLB'!$A$7:$E$1199,5,1),"") -> 
A180: 176 | J180: =IFERROR(VLOOKUP(I180,'[2]AC TLB'!$A$7:$E$1199,5,1),"") -> 
A181: 177 | J181: =IFERROR(VLOOKUP(I181,'[2]AC TLB'!$A$7:$E$1199,5,1),"") -> 
A182: 178 | J182: =IFERROR(VLOOKUP(I182,'[2]AC TLB'!$A$7:$E$1199,5,1),"") -> 
A183: 179 | J183: =IFERROR(VLOOKUP(I183,'[2]AC TLB'!$A$7:$E$1199,5,1),"") -> 
A184: 180 | J184: =IFERROR(VLOOKUP(I184,'[2]AC TLB'!$A$7:$E$1199,5,1),"") -> 
A185: 181 | J185: =IFERROR(VLOOKUP(I185,'[2]AC TLB'!$A$7:$E$1199,5,1),"") -> 
A186: 182 | J186: =IFERROR(VLOOKUP(I186,'[2]AC TLB'!$A$7:$E$1199,5,1),"") -> 
A187: 183 | J187: =IFERROR(VLOOKUP(I187,'[2]AC TLB'!$A$7:$E$1199,5,1),"") -> 
A188: 184 | J188: =IFERROR(VLOOKUP(I188,'[2]AC TLB'!$A$7:$E$1199,5,1),"") -> 
A189: 185 | J189: =IFERROR(VLOOKUP(I189,'[2]AC TLB'!$A$7:$E$1199,5,1),"") -> 
A190: 186 | J190: =IFERROR(VLOOKUP(I190,'[2]AC TLB'!$A$7:$E$1199,5,1),"") -> 
A191: 187 | J191: =IFERROR(VLOOKUP(I191,'[2]AC TLB'!$A$7:$E$1199,5,1),"") -> 
A192: 188 | J192: =IFERROR(VLOOKUP(I192,'[2]AC TLB'!$A$7:$E$1199,5,1),"") -> 
A193: 189 | J193: =IFERROR(VLOOKUP(I193,'[2]AC TLB'!$A$7:$E$1199,5,1),"") -> 
A194: 190 | J194: =IFERROR(VLOOKUP(I194,'[2]AC TLB'!$A$7:$E$1199,5,1),"") -> 
A195: 191 | J195: =IFERROR(VLOOKUP(I195,'[2]AC TLB'!$A$7:$E$1199,5,1),"") -> 
A196: 192 | J196: =IFERROR(VLOOKUP(I196,'[2]AC TLB'!$A$7:$E$1199,5,1),"") -> 
A197: 193 | J197: =IFERROR(VLOOKUP(I197,'[2]AC TLB'!$A$7:$E$1199,5,1),"") -> 
A198: 194 | J198: =IFERROR(VLOOKUP(I198,'[2]AC TLB'!$A$7:$E$1199,5,1),"") -> 
A199: 195 | J199: =IFERROR(VLOOKUP(I199,'[2]AC TLB'!$A$7:$E$1199,5,1),"") -> 
A200: 196 | J200: =IFERROR(VLOOKUP(I200,'[2]AC TLB'!$A$7:$E$1199,5,1),"") -> 
A201: 197 | J201: =IFERROR(VLOOKUP(I201,'[2]AC TLB'!$A$7:$E$1199,5,1),"") -> 
A202: 198 | J202: =IFERROR(VLOOKUP(I202,'[2]AC TLB'!$A$7:$E$1199,5,1),"") -> 
... 514 more rows
